Workbook

Sheet A 財務分析シート
B4: ■基本情報
B5: 商号 | E5: ='B 【入力要】財務分析'!D5 -> 株式会社○○
B7: 所在地 | E7: ='B 【入力要】財務分析'!D6 -> 東京都○○
B8: 代表者名 | E8: ='B 【入力要】財務分析'!D7 -> ○○ ○○
B9: 業種_大分類 | E9: ='B 【入力要】財務分析'!D9 -> 13_観光業
B10: 業種_小分類 | E10: ='B 【入力要】財務分析'!D10 -> 1301_観光業
B11: 事業規模 | E11: ='B 【入力要】財務分析'!D20 -> 中規模事業者
B13: 売上高 | E13: ='B 【入力要】財務分析'!$D$27 -> 5130250
B14: 営業利益 | E14: ='B 【入力要】財務分析'!$D$29 -> 15000
B15: 従業員数 | E15: ='B 【入力要】財務分析'!D12 -> 30
B18: ■財務指標(最新期）
B19: 指標 | E19: ='B 【入力要】財務分析'!D26 -> 2017-03-01
E20: 算出結果 | G20: 貴社点数 | I20: 業種基準値
B21: ①売上増加率 | E21: ='B 【入力要】財務分析'!K6 -> 0.07849528439 | G21: ='B 【入力要】財務分析'!L6 -> 3 | I21: =IFERROR(INDEX(【参照】売上増加率基準値!$E:$E,MATCH($E$10&$E$11,INDEX(【参照】売上増加率基準値!$C:$C&【参照】売上増加率基準値!$D:$D,),0)),"-") -> 0.04052844895
B22: ②営業利益率 | E22: ='B 【入力要】財務分析'!K7 -> 0.002923834121 | G22: ='B 【入力要】財務分析'!L7 -> 2 | I22: =IFERROR(INDEX(【参照】営業利益率基準値!$E:$E,MATCH($E$10&$E$11,INDEX(【参照】営業利益率基準値!$C:$C&【参照】営業利益率基準値!$D:$D,),0)),"-") -> 0.02727075066
B23: ③労働生産性 | E23: ='B 【入力要】財務分析'!K8 -> 500 | G23: ='B 【入力要】財務分析'!L8 -> 3 | I23: =IFERROR(INDEX(【参照】労働生産性基準値!$E:$E,MATCH($E$10&$E$11,INDEX(【参照】労働生産性基準値!$C:$C&【参照】労働生産性基準値!$D:$D,),0)),"-") -> 647.6227102
B24: ④EBITDA有利子負債倍率 | E24: ='B 【入力要】財務分析'!K9 -> -0.06666666667 | G24: ='B 【入力要】財務分析'!L9 -> 5 | I24: =IFERROR(INDEX(【参照】EBITDA基準値!$E:$E,MATCH($E$10&$E$11,INDEX(【参照】EBITDA基準値!$C:$C&【参照】EBITDA基準値!$D:$D,),0)),"-") -> 6.397593957
B25: ⑤営業運転資本回転期間 | E25: ='B 【入力要】財務分析'!K10 -> 0.771927294 | G25: ='B 【入力要】財務分析'!L10 -> 2 | I25: =IFERROR(INDEX(【参照】営業運転資本回転期間基準値!$E:$E,MATCH($E$10&$E$11,INDEX(【参照】営業運転資本回転期間基準値!$C:$C&【参照】営業運転資本回転期間基準値!$D:$D,),0)),"-") -> 0.3606001694
B26: ⑥自己資本比率 | E26: ='B 【入力要】財務分析'!K11 -> 0.3536339969 | G26: ='B 【入力要】財務分析'!L11 -> 3 | I26: =IFERROR(INDEX(【参照】自己資本比率基準値!$E:$E,MATCH($E$10&$E$11,INDEX(【参照】自己資本比率基準値!$C:$C&【参照】自己資本比率基準値!$D:$D,),0)),"-") -> 0.2154563673
E28: 総合評価点 | H28: =SUM(G21:H26) -> 18 | I28: =IF(H28>=24,"A",IF(H28>=18,"B",IF(H28>=12,"C","D"))) -> B
B31: ■財務指標（過去2期）
B32: 指標 | E32: ='B 【入力要】財務分析'!E26 -> 2016-03-01 | K32: ='B 【入力要】財務分析'!F26 -> 2015-03-01 | S32: ※１各項目の評点および総合評価点は各項目の業種基準値からの乖離を示すものであり、点数の高低が必ずしも企業の評価を示すものではありません。非財務指標も含め、総合的な判断が必要なことにご留意ください。 ※２レーダーチャートで3期分の財務分析結果の推移が確認できるため、各指標が良化（あるいは悪化）した要因を非財務の対話シートを活用しながら把握することで、経営状況や課題の把握に繋がります。
E33: 算出結果 | G33: 貴社点数 | I33: 業種基準値 | K33: 算出結果 | N33: 貴社点数 | P33: 業種基準値
B34: ①売上増加率 | E34: ='B 【入力要】財務分析'!M6 -> -0.02353600471 | G34: ='B 【入力要】財務分析'!N6 -> 2 | I34: =IFERROR(INDEX(【参照】売上増加率基準値!$E:$E,MATCH($E$10&$E$11,INDEX(【参照】売上増加率基準値!$C:$C&【参照】売上増加率基準値!$D:$D,),0)),"-") -> 0.04052844895 | K34: ='B 【入力要】財務分析'!O6 -> -0.01228421472 | N34: ='B 【入力要】財務分析'!P6 -> 2 | P34: =IFERROR(INDEX(【参照】売上増加率基準値!$E:$E,MATCH($E$10&$E$11,INDEX(【参照】売上増加率基準値!$C:$C&【参照】売上増加率基準値!$D:$D,),0)),"-") -> 0.04052844895
B35: ②営業利益率 | E35: ='B 【入力要】財務分析'!M7 -> -0.003220612593 | G35: ='B 【入力要】財務分析'!N7 -> 2 | I35: =IFERROR(INDEX(【参照】営業利益率基準値!$E:$E,MATCH($E$10&$E$11,INDEX(【参照】営業利益率基準値!$C:$C&【参照】営業利益率基準値!$D:$D,),0)),"-") -> 0.02727075066 | K35: ='B 【入力要】財務分析'!O7 -> 0 | N35: ='B 【入力要】財務分析'!P7 -> 2 | P35: =IFERROR(INDEX(【参照】営業利益率基準値!$E:$E,MATCH($E$10&$E$11,INDEX(【参照】営業利益率基準値!$C:$C&【参照】営業利益率基準値!$D:$D,),0)),"-") -> 0.02727075066
B36: ③労働生産性 | E36: ='B 【入力要】財務分析'!M8 -> -392.8205128 | G36: ='B 【入力要】財務分析'!N8 -> 2 | I36: =IFERROR(INDEX(【参照】労働生産性基準値!$E:$E,MATCH($E$10&$E$11,INDEX(【参照】労働生産性基準値!$C:$C&【参照】労働生産性基準値!$D:$D,),0)),"-") -> 647.6227102 | K36: ='B 【入力要】財務分析'!O8 -> 0 | N36: ='B 【入力要】財務分析'!P8 -> 2 | P36: =IFERROR(INDEX(【参照】労働生産性基準値!$E:$E,MATCH($E$10&$E$11,INDEX(【参照】労働生産性基準値!$C:$C&【参照】労働生産性基準値!$D:$D,),0)),"-") -> 647.6227102
B37: ④EBITDA有利子負債倍率 | E37: ='B 【入力要】財務分析'!M9 -> 61.1983245 | G37: ='B 【入力要】財務分析'!N9 -> 1 | I37: =IFERROR(INDEX(【参照】EBITDA基準値!$E:$E,MATCH($E$10&$E$11,INDEX(【参照】EBITDA基準値!$C:$C&【参照】EBITDA基準値!$D:$D,),0)),"-") -> 6.397593957 | K37: ='B 【入力要】財務分析'!O9 -> - | N37: ='B 【入力要】財務分析'!P9 -> 1 | P37: =IFERROR(INDEX(【参照】EBITDA基準値!$E:$E,MATCH($E$10&$E$11,INDEX(【参照】EBITDA基準値!$C:$C&【参照】EBITDA基準値!$D:$D,),0)),"-") -> 6.397593957
B38: ⑤営業運転資本回転期間 | E38: ='B 【入力要】財務分析'!M10 -> 2.832388683 | G38: ='B 【入力要】財務分析'!N10 -> 1 | I38: =IFERROR(INDEX(【参照】営業運転資本回転期間基準値!$E:$E,MATCH($E$10&$E$11,INDEX(【参照】営業運転資本回転期間基準値!$C:$C&【参照】営業運転資本回転期間基準値!$D:$D,),0)),"-") -> 0.3606001694 | K38: ='B 【入力要】財務分析'!O10 -> 1.133216416 | N38: ='B 【入力要】財務分析'!P10 -> 2 | P38: =IFERROR(INDEX(【参照】営業運転資本回転期間基準値!$E:$E,MATCH($E$10&$E$11,INDEX(【参照】営業運転資本回転期間基準値!$C:$C&【参照】営業運転資本回転期間基準値!$D:$D,),0)),"-") -> 0.3606001694
B39: ⑥自己資本比率 | E39: ='B 【入力要】財務分析'!M11 -> 0.02148004996 | G39: ='B 【入力要】財務分析'!N11 -> 2 | I39: =IFERROR(INDEX(【参照】自己資本比率基準値!$E:$E,MATCH($E$10&$E$11,INDEX(【参照】自己資本比率基準値!$C:$C&【参照】自己資本比率基準値!$D:$D,),0)),"-") -> 0.2154563673 | K39: ='B 【入力要】財務分析'!O11 -> 0.2424486468 | N39: ='B 【入力要】財務分析'!P11 -> 3 | P39: =IFERROR(INDEX(【参照】自己資本比率基準値!$E:$E,MATCH($E$10&$E$11,INDEX(【参照】自己資本比率基準値!$C:$C&【参照】自己資本比率基準値!$D:$D,),0)),"-") -> 0.2154563673
E41: 総合評価点 | H41: =SUM(G34:H39) -> 10 | I41: =IF(H41>=24,"A",IF(H41>=18,"B",IF(H41>=12,"C","D"))) -> D | K41: 総合評価点 | O41: =SUM(N34:O39) -> 12 | P41: =IF(O41>=24,"A",IF(O41>=18,"B",IF(O41>=12,"C","D"))) -> C
E43: ※総合評価点のランクはA：24点以上、B：18点以上24点未満、C：12点以上18点未満、D：12点未満

Sheet B 【入力要】財務分析
B1: 以下項目の黄色い網掛け部分について入力してください。
B3: ■基本入力情報 | D3: ※金額の単位は千円、従業員数の単位は人 | H3: ■算出結果
B4: 項目 | D4: 入力欄 | K4: =D26 -> 2017-03-01 | M4: =E26 -> 2016-03-01 | O4: =F26 -> 2015-03-01
B5: 商号 | D5: 株式会社○○ | H5: 指標 | K5: 算出結果 | L5: 点数 | M5: 算出結果 | N5: 点数 | O5: 算出結果 | P5: 点数
B6: 所在地 | D6: 東京都○○ | H6: ①売上増加率 | K6: =IFERROR(IF(OR(D27="",D28=""),"-",(D27/D28)-1),"-") -> 0.07849528439 | L6: =IFERROR(IF(OR(K6="-",$J$16="-"),".",IF((K6>=$M$16),5,IF(AND(K6>=$L$16,K6<$M$16),4,IF(AND(K6>=$K$16,K6<$L$16),3,IF(AND(K6>=$J$16,K6<$K$16),2,IF((K6<$J$16),1)))))),".") -> 3 | M6: =IFERROR(IF(OR(E27="",E28=""),"-",(E27/E28)-1),"-") -> -0.02353600471 | N6: =IFERROR(IF(OR($J$16="-",M6="-"),".",IF((M6>=$M$16),5,IF(AND(M6>=$L$16,M6<$M$16),4,IF(AND(M6>=$K$16,M6<$L$16),3,IF(AND(M6>=$J$16,M6<$K$16),2,IF((M6<$J$16),1)))))),".") -> 2 | O6: =IFERROR(IF(OR(F27="",F28=""),"-",(F27/F28)-1),"-") -> -0.01228421472 | P6: =IFERROR(IF(OR($J$16="-",O6="-"),".",IF((O6>=$M$16),5,IF(AND(O6>=$L$16,O6<$M$16),4,IF(AND(O6>=$K$16,O6<$L$16),3,IF(AND(O6>=$J$16,O6<$K$16),2,IF((O6<$J$16),1)))))),".") -> 2
B7: 代表者名 | D7: ○○ ○○ | H7: ②営業利益率 | K7: =IFERROR(IF(OR(D29="",D27=""),"-",D29/D27),"-") -> 0.002923834121 | L7: =IFERROR(IF(OR($J$17="-",K7="-"),".",IF((K7>=$M$17),5,IF(AND(K7>=$L$17,K7<$M$17),4,IF(AND(K7>=$K$17,K7<$L$17),3,IF(AND(K7>=$J$17,K7<$K$17),2,IF((K7<$J$17),1)))))),".") -> 2 | M7: =IFERROR(IF(OR(E29="",E27=""),"-",E29/E27),"-") -> -0.003220612593 | N7: =IFERROR(IF(OR($J$16="-",M7="-"),".",IF((M7>=$M$17),5,IF(AND(M7>=$L$17,M7<$M$17),4,IF(AND(M7>=$K$17,M7<$L$17),3,IF(AND(M7>=$J$17,M7<$K$17),2,IF((M7<$J$17),1)))))),".") -> 2 | O7: =IFERROR(IF(OR(F29="",F27=""),"-",F29/F27),"-") -> 0 | P7: =IFERROR(IF(OR($J$17="-",O7="-"),".",IF((O7>=$M$17),5,IF(AND(O7>=$L$17,O7<$M$17),4,IF(AND(O7>=$K$17,O7<$L$17),3,IF(AND(O7>=$J$17,O7<$K$17),2,IF((O7<$J$17),1)))))),".") -> 2
B8: 業種確認ボタン | H8: ③労働生産性 ※8 | K8: =IFERROR(IF(OR(D29="",D12=""),"-",D29/D12),"-") -> 500 | L8: =IFERROR(IF(OR($J$18="-",K8="-"),".",IF((K8>=$M$18),5,IF(AND(K8>=$L$18,K8<$M$18),4,IF(AND(K8>=$K$18,K8<$L$18),3,IF(AND(K8>=$J$18,K8<$K$18),2,IF((K8<$J$18),1)))))),".") -> 3 | M8: =IFERROR(IF(OR(E29="",E12=""),"-",E29/E12),"-") -> -392.8205128 | N8: =IFERROR(IF(OR($J$18="-",M8="-"),".",IF((M8>=$M$18),5,IF(AND(M8>=$L$18,M8<$M$18),4,IF(AND(M8>=$K$18,M8<$L$18),3,IF(AND(M8>=$J$18,M8<$K$18),2,IF((M8<$J$18),1)))))),".") -> 2 | O8: =IFERROR(IF(OR(F29="",F12=""),"-",F29/F12),"-") -> 0 | P8: =IFERROR(IF(OR($J$18="-",O8="-"),".",IF((O8>=$M$18),5,IF(AND(O8>=$L$18,O8<$M$18),4,IF(AND(O8>=$K$18,O8<$L$18),3,IF(AND(O8>=$J$18,O8<$K$18),2,IF((O8<$J$18),1)))))),".") -> 2
B9: ローカルベンチマーク23業種_大分類 | D9: 13_観光業 | H9: ④EBITDA有利子負債倍率 ※9 | K9: =IFERROR(IF(OR(D29="",D30="",D31="",D38=""),"-",(D38-D31)/(D29+D30)),"-") -> -0.06666666667 | L9: =IFERROR(IF($J$19="-",".",IF(AND($D$38<>"",$D$31<>"",OR($D$38<$D$31,$D$38-$D$31=0)),5,IF(AND($D$29<>"",$D$30<>"",(($D$29+$D$30)<=0)),1,IF((K9<$M$19),5,IF(AND(K9>=$M$19,K9<$L$19),4,IF(AND(K9>=$L$19,K9<$K$19),3,IF(AND(K9>=$K$19,K9<$J$19),2,IF(AND(K9>=$J$19,K9<>"-"),1,IF(K9="-","."))))))))),".") -> 5 | M9: =IFERROR(IF(OR(E29="",E30="",E31="",E38=""),"-",(E38-E31)/(E29+E30)),"-") -> 61.1983245 | N9: =IFERROR(IF($J$19="-",".",IF(AND($E$38<>"",$E$31<>"",OR($E$38<$E$31,$E$38-$E$31=0)),5,IF(AND($E$29<>"",$E$30<>"",(($E$29+$E$30)<=0)),1,IF((M9<$M$19),5,IF(AND(M9>=$M$19,M9<$L$19),4,IF(AND(M9>=$L$19,M9<$K$19),3,IF(AND(M9>=$K$19,M9<$J$19),2,IF(AND(M9>=$J$19,M9<>"-"),1,IF(M9="-","."))))))))),".") -> 1 | O9: =IFERROR(IF(OR(F29="",F30="",F31="",F38=""),"-",(F38-F31)/(F29+F30)),"-") -> - | P9: =IFERROR(IF($J$19="-",".",IF(AND($F$38<>"",$F$31<>"",OR($F$38<$F$31,$F$38-$F$31=0)),5,IF(AND($F$29<>"",$F$30<>"",(($F$29+$F$30)<=0)),1,IF((O9<$M$19),5,IF(AND(O9>=$M$19,O9<$L$19),4,IF(AND(O9>=$L$19,O9<$K$19),3,IF(AND(O9>=$K$19,O9<$J$19),2,IF(AND(O9>=$J$19,O9<>"-"),1,IF(O9="-","."))))))))),".") -> 1
B10: ローカルベンチマーク23業種_小分類 | D10: 1301_観光業 | H10: ⑤営業運転資本回転期間 | K10: =IFERROR(IF(OR(D27="",AND(D33="",D32="",D34="",D37="",D36)),"-",(D33+D32+D34-(D37+D36))/(D27/12)),"-") -> 0.771927294 | L10: =IFERROR(IF(OR($J$20="-",K10="-"),".",IF((K10<$M$20),5,IF(AND(K10>=$M$20,K10<$L$20),4,IF(AND(K10>=$L$20,K10<$K$20),3,IF(AND(K10>=$K$20,K10<$J$20),2,IF((K10>=$J$20),1)))))),".") -> 2 | M10: =IFERROR(IF(OR(E27="",AND(E33="",E32="",E34="",E37="",E36)),"-",(E33+E32+E34-(E37+E36))/(E27/12)),"-") -> 2.832388683 | N10: =IFERROR(IF(OR($J$20="-",M10="-"),".",IF((M10<$M$20),5,IF(AND(M10>=$M$20,M10<$L$20),4,IF(AND(M10>=$L$20,M10<$K$20),3,IF(AND(M10>=$K$20,M10<$J$20),2,IF((M10>=$J$20),1)))))),".") -> 1 | O10: =IFERROR(IF(OR(F27="",AND(F33="",F32="",F34="",F37="",F36)),"-",(F33+F32+F34-(F37+F36))/(F27/12)),"-") -> 1.133216416 | P10: =IFERROR(IF(OR($J$20="-",O10="-"),".",IF((O10<$M$20),5,IF(AND(O10>=$M$20,O10<$L$20),4,IF(AND(O10>=$L$20,O10<$K$20),3,IF(AND(O10>=$K$20,O10<$J$20),2,IF((O10>=$J$20),1)))))),".") -> 2
D11: 最新決算期 | E11: 前期決算期 | F11: 前々期決算期 | H11: ⑥自己資本比率 | K11: =IFERROR(IF(OR(D39="",D35=""),"-",D39/(D39+D35)),"-") -> 0.3536339969 | L11: =IFERROR(IF(OR($J$21="-",K11="-"),".",IF((K11>=$M$21),5,IF(AND(K11>=$L$21,K11<$M$21),4,IF(AND(K11>=$K$21,K11<$L$21),3,IF(AND(K11>=$J$21,K11<$K$21),2,IF((K11<$J$21),1)))))),".") -> 3 | M11: =IFERROR(IF(OR(E39="",E35=""),"-",E39/(E39+E35)),"-") -> 0.02148004996 | N11: =IFERROR(IF(OR($J$21="-",M11="-"),".",IF((M11>=$M$21),5,IF(AND(M11>=$L$21,M11<$M$21),4,IF(AND(M11>=$K$21,M11<$L$21),3,IF(AND(M11>=$J$21,M11<$K$21),2,IF((M11<$J$21),1)))))),".") -> 2 | O11: =IFERROR(IF(OR(F39="",F35=""),"-",F39/(F39+F35)),"-") -> 0.2424486468 | P11: =IFERROR(IF(OR($J$21="-",O11="-"),".",IF((O11>=$M$21),5,IF(AND(O11>=$L$21,O11<$M$21),4,IF(AND(O11>=$K$21,O11<$L$21),3,IF(AND(O11>=$J$21,O11<$K$21),2,IF((O11<$J$21),1)))))),".") -> 3
B12: 従業員数（正社員）※1 | D12: 30 | E12: 39 | F12: 30
B13: 資本金 ※2 | D13: 10000
H14: ="■"&D20&"_"&D10&"_企業のランク基準" -> ■中規模事業者_1301_観光業_企業のランク基準
H15: 指標 | J15: ⅳ | K15: ⅲ | L15: ⅱ | M15: ⅰ
H16: ①売上増加率 | J16: =IFERROR(INDEX(【参照】売上増加率基準値!$G:$G,MATCH($D$10&$D$20,INDEX(【参照】売上増加率基準値!$C:$C&【参照】売上増加率基準値!$D:$D,),0)),"-") -> -0.04831752859 | K16: =IFERROR(INDEX(【参照】売上増加率基準値!$H:$H,MATCH($D$10&$D$20,INDEX(【参照】売上増加率基準値!$C:$C&【参照】売上増加率基準値!$D:$D,),0)),"-") -> 0.009259388762 | L16: =IFERROR(INDEX(【参照】売上増加率基準値!$I:$I,MATCH($D$10&$D$20,INDEX(【参照】売上増加率基準値!$C:$C&【参照】売上増加率基準値!$D:$D,),0)),"-") -> 0.08083931423 | M16: =IFERROR(INDEX(【参照】売上増加率基準値!$J:$J,MATCH($D$10&$D$20,INDEX(【参照】売上増加率基準値!$C:$C&【参照】売上増加率基準値!$D:$D,),0)),"-") -> 0.1999086308
B17: ※プルダウンメニューが利用できない場合は「業種シート」から 該当する日本標準分類を | H17: ②営業利益率 | J17: =IFERROR(INDEX(【参照】営業利益率基準値!$G:$G,MATCH($D$10&$D$20,INDEX(【参照】営業利益率基準値!$C:$C&【参照】営業利益率基準値!$D:$D,),0)),"-") -> -0.02547391351 | K17: =IFERROR(INDEX(【参照】営業利益率基準値!$H:$H,MATCH($D$10&$D$20,INDEX(【参照】営業利益率基準値!$C:$C&【参照】営業利益率基準値!$D:$D,),0)),"-") -> 0.01106740969 | L17: =IFERROR(INDEX(【参照】営業利益率基準値!$I:$I,MATCH($D$10&$D$20,INDEX(【参照】営業利益率基準値!$C:$C&【参照】営業利益率基準値!$D:$D,),0)),"-") -> 0.05360738831 | M17: =IFERROR(INDEX(【参照】営業利益率基準値!$J:$J,MATCH($D$10&$D$20,INDEX(【参照】営業利益率基準値!$C:$C&【参照】営業利益率基準値!$D:$D,),0)),"-") -> 0.09765160722
B18: コピー＆ペーストして下さい。 | H18: ③労働生産性 | J18: =IFERROR(INDEX(【参照】労働生産性基準値!$G:$G,MATCH($D$10&$D$20,INDEX(【参照】労働生産性基準値!$C:$C&【参照】労働生産性基準値!$D:$D,),0)),"-") -> -732.2191142 | K18: =IFERROR(INDEX(【参照】労働生産性基準値!$H:$H,MATCH($D$10&$D$20,INDEX(【参照】労働生産性基準値!$C:$C&【参照】労働生産性基準値!$D:$D,),0)),"-") -> 239.2083081 | L18: =IFERROR(INDEX(【参照】労働生産性基準値!$I:$I,MATCH($D$10&$D$20,INDEX(【参照】労働生産性基準値!$C:$C&【参照】労働生産性基準値!$D:$D,),0)),"-") -> 1455.269705 | M18: =IFERROR(INDEX(【参照】労働生産性基準値!$J:$J,MATCH($D$10&$D$20,INDEX(【参照】労働生産性基準値!$C:$C&【参照】労働生産性基準値!$D:$D,),0)),"-") -> 3617.221415
H19: ④EBITDA有利子負債倍率 | J19: =IFERROR(INDEX(【参照】EBITDA基準値!$G:$G,MATCH($D$10&$D$20,INDEX(【参照】EBITDA基準値!$C:$C&【参照】EBITDA基準値!$D:$D,),0)),"-") -> 18.21409261 | K19: =IFERROR(INDEX(【参照】EBITDA基準値!$H:$H,MATCH($D$10&$D$20,INDEX(【参照】EBITDA基準値!$C:$C&【参照】EBITDA基準値!$D:$D,),0)),"-") -> 9.399502447 | L19: =IFERROR(INDEX(【参照】EBITDA基準値!$I:$I,MATCH($D$10&$D$20,INDEX(【参照】EBITDA基準値!$C:$C&【参照】EBITDA基準値!$D:$D,),0)),"-") -> 3.395570981 | M19: =IFERROR(INDEX(【参照】EBITDA基準値!$J:$J,MATCH($D$10&$D$20,INDEX(【参照】EBITDA基準値!$C:$C&【参照】EBITDA基準値!$D:$D,),0)),"-") -> 0.8433048433
B20: 事業規模 ※3 | D20: =IF(OR(D9="",D10=""),"業種欄が未入力のため規模判定ができません",IF(LEFT(D9,2)<>LEFT(D10,2),"業種欄に間違いがあるため規模判定ができません",IF(D12="","従業員数欄が未入力のため規模判定ができません",IF(D13="","資本金欄が未入力のため規模判定ができません",【参照】企業規模!C2)))) -> 中規模事業者 | H20: ⑤営業運転資本回転期間 | J20: =IFERROR(INDEX(【参照】営業運転資本回転期間基準値!$G:$G,MATCH($D$10&$D$20,INDEX(【参照】営業運転資本回転期間基準値!$C:$C&【参照】営業運転資本回転期間基準値!$D:$D,),0)),"-") -> 1.507013272 | K20: =IFERROR(INDEX(【参照】営業運転資本回転期間基準値!$H:$H,MATCH($D$10&$D$20,INDEX(【参照】営業運転資本回転期間基準値!$C:$C&【参照】営業運転資本回転期間基準値!$D:$D,),0)),"-") -> 0.7610521108 | L20: =IFERROR(INDEX(【参照】営業運転資本回転期間基準値!$I:$I,MATCH($D$10&$D$20,INDEX(【参照】営業運転資本回転期間基準値!$C:$C&【参照】営業運転資本回転期間基準値!$D:$D,),0)),"-") -> 0.1541858171 | M20: =IFERROR(INDEX(【参照】営業運転資本回転期間基準値!$J:$J,MATCH($D$10&$D$20,INDEX(【参照】営業運転資本回転期間基準値!$C:$C&【参照】営業運転資本回転期間基準値!$D:$D,),0)),"-") -> -0.2542567989
B21: ※上表の 欄が空欄になると事業規模が判定できないため、必ず入力して下さい。 | H21: ⑥自己資本比率 | J21: =IFERROR(INDEX(【参照】自己資本比率基準値!$G:$G,MATCH($D$10&$D$20,INDEX(【参照】自己資本比率基準値!$C:$C&【参照】自己資本比率基準値!$D:$D,),0)),"-") -> -0.06343022408 | K21: =IFERROR(INDEX(【参照】自己資本比率基準値!$H:$H,MATCH($D$10&$D$20,INDEX(【参照】自己資本比率基準値!$C:$C&【参照】自己資本比率基準値!$D:$D,),0)),"-") -> 0.1204801126 | L21: =IFERROR(INDEX(【参照】自己資本比率基準値!$I:$I,MATCH($D$10&$D$20,INDEX(【参照】自己資本比率基準値!$C:$C&【参照】自己資本比率基準値!$D:$D,),0)),"-") -> 0.3651142593 | M21: =IFERROR(INDEX(【参照】自己資本比率基準値!$J:$J,MATCH($D$10&$D$20,INDEX(【参照】自己資本比率基準値!$C:$C&【参照】自己資本比率基準値!$D:$D,),0)),"-") -> 0.5618148803
B23: ■財務分析用入力情報 | D23: ※金額の単位は千円 | H23: ■算出指標
B24: 項目 | D24: 入力欄 | H24: 指標 | K24: 分類 | L24: 単位 | M24: 算出式
D25: 最新決算期 | E25: 前期決算期 | F25: 前々期決算期 | H25: ①売上増加率 | K25: 売上持続性 | L25: ％ | M25: （最新期売上高/前期売上高）－１
B26: 決算年月 | D26: 2017-03-01 | E26: 2016-03-01 | F26: 2015-03-01 | H26: ②営業利益率 | K26: 収益性 | L26: ％ | M26: 営業利益／最新期売上高
B27: 売上高 | D27: 5130250 | E27: 4756859 | F27: 4871515 | H27: ③労働生産性 ※8 | K27: 生産性 | L27: 千円 | M27: 営業利益／従業員数
B28: 前期売上高 | D28: =E27 -> 4756859 | E28: =F27 -> 4871515 | F28: 4932102 | H28: ④EBITDA有利子負債倍率 ※9 | K28: 健全性 | L28: 倍 | M28: （借入金－現金・預金）／（営業利益＋減価償却費） ※9
B29: 営業利益 | D29: 15000 | E29: -15320 | F29: 0 | H29: ⑤営業運転資本回転期間 | K29: 効率性 | L29: ヶ月 | M29: {売上債権（売掛金＋受取手形）＋棚卸資産－
B30: 減価償却費 ※4 | D30: 0 | E30: 18340 | F30: 0 | M30: 買入債務（買掛金＋支払手形）}／（売上高／１２）
B31: 現金・預金 | D31: 1000 | E31: 465301.06 | F31: 474607.0812 | H31: ⑥自己資本比率 | K31: 安全性 | L31: ％ | M31: 純資産／負債・純資産合計
B32: 受取手形 ※5 | D32: 270760 | E32: 259929.6 | F32: 228738.048
B33: 売掛金 | D33: 456500 | E33: 944198.4 | F33: 566894.592
B34: 棚卸資産 | D34: 439285 | E34: 621713.6 | F34: 371107.968
B35: 負債合計 | D35: 1668387 | E35: 3201651.52 | F35: 2409453.338
B36: 支払手形 ※6 | D36: 463324 | E36: 444791.04 | F36: 391416.1152
B37: 買掛金 | D37: 373206 | E37: 258277.76 | F37: 315284.4288
B38: 借入金 ※7 | D38: 0 | E38: 650120 | F38: 970130
B39: 純資産合計 | D39: 912793 | E39: 70281.28 | F39: 771127.5264
B41: ※1：従業員（正社員）には、パート及び派遣及び契約社員は含まれません。 | H41: (表1）
B42: 従業員兼役員は含まれます。 | H42: 業種 | I42: 本財務分析シートの業種区分 | K42: 中小企業基本法 中小企業定義
B43: 役員のみの企業で上記定義によると0名となる場合については、1名として下さい。 | H43: 製造業 その他 | I43: 農業、建設業、製造業、不動産業、 | K43: 資本金の額又は出資の総額が3億円以下の会社 又は 常時使用する従業員の数が300人以下の会社及び個人
B44: ※2：個人事業主の場合は、資本金は「0」と入力して下さい。 | I44: 運輸業、エネルギー、その他 | L44: 内、従業員20人以下の企業を「小規模企業」とする。
B45: ※3：事業規模は、中小企業基本法の中小企業者の定義(表1）に基づき | H45: 卸売業 | I45: 卸売業 | K45: 資本金の額又は出資の総額が1億円以下の会社 又は 常時使用する従業員の数が100人以下の会社及び個人
B46: 判定しております。 | L46: 内、従業員5人以下の企業を「小規模企業」とする。
B47: 尚、中小企業以外の「中堅企業等」は、「中規模企業」として事業規模判定をしております。 | H47: 小売業 | I47: 小売業、飲食業 | K47: 資本金の額又は出資の総額が5千万円以下の会社 又は 常時使用する従業員の数が50人以下の会社及び個人
B48: ※4：製造原価、一般管理販売費等に計上されている減価償却費の合計を | L48: 内、従業員5人以下の企業を「小規模企業」とする。
B49: 入力して下さい。 | H49: サービス業 | I49: サービス業、医療業、保健衛生、 | K49: 資本金の額又は出資の総額が5千万円以下の会社 又は 常時使用する従業員の数が100人以下の会社及び個人
B50: ※5：受取手形には、割引手形を含めた金額を入力して下さい。 | I50: 廃棄物処理業、観光業 | L50: 内、従業員5人以下の企業を「小規模企業」とする。
B51: ※6：支払手形には、設備支払手形は含めません。
B52: ※7：借入金は、長期借入・短期借入・1年以内返済長期借入金の合計を入力して下さい。なお、長期借入・短期借入・1年以内返済長期借入金の内数となっていない役員借入金は基準値の計算上、含まれません。
B53: ※8：本分析の労働生産性は簡易的に計算したものとなりますので、経営力向上計画等に記載の際は、それぞれの定義に沿った数値を各自で計算して下さい。
B54: ※9：以下の優先順位に基づき、点数を付与します。
B55: 優先①：（借入金－現金・預金）が0以下の場合は、「5点」を付与
B56: 優先②：（営業利益＋減価償却費）が0以下の場合は、「1点」を付与
B57: 優先③：（借入金－現金・預金）が0超の時及び（営業利益＋減価償却費）が0超の時、本式にて算出された結果に基づき点数を付与

Sheet C 【入力要】商流・業務フロー
V1: 商号 | Y1: ='B 【入力要】財務分析'!D5 -> 株式会社○○
V2: 売上高 | Y2: ='B 【入力要】財務分析'!D27 -> 5130250
V3: 営業利益 | Y3: ='B 【入力要】財務分析'!D29 -> 15000
V4: 従業員数 | Y4: ='B 【入力要】財務分析'!$D$12 -> 30
B5: ＜製品製造、サービス提供における業務フローと差別化ポイント＞
B6: 業務① | G6: 業務② | L6: 業務③ | Q6: 業務④ | V6: 業務⑤ | AA6: 提供内容／顧客提供価値
B7: ■実施内容 | G7: ■実施内容 | L7: ■実施内容 | Q7: ■実施内容 | V7: ■実施内容 | AA7: ■製品・商品・サービスの内容
F10: ⇒ | K10: ⇒ | P10: ⇒ | U10: ⇒ | Z10: ⇒
B13: ■差別化ポイント | G13: ■差別化ポイント | L13: ■差別化ポイント | Q13: ■差別化ポイント | V13: ■差別化ポイント | AA13: ■どのような価値を提供しているか
B20: ＜商流把握＞
B21: 仕入先 | L21: 当社 | V21: エンドユーザー
B22: ■社名・取引金額・内容等 | V22: ■属性（消費者・企業等）
V23: ※社名・取引金額・内容等
G24: 協力先 | Q24: 得意先
G25: ■社名・取引金額・内容等 | Q25: ■属性（消費者・企業等）
Q26: ※社名・取引金額・内容等
B27: ■選定理由
V28: ■選ばれている理由
G30: ■選定理由
Q31: ■選ばれている理由

Sheet D 【入力要】4つの視点
W1: 商号 | AA1: ='B 【入力要】財務分析'!D5 -> 株式会社○○
W2: 売上高 | AA2: ='B 【入力要】財務分析'!D27 -> 5130250
W3: 営業利益 | AA3: ='B 【入力要】財務分析'!D29 -> 15000
W4: 従業員数 | AA4: ='B 【入力要】財務分析'!$D$12 -> 30
B6: ①経営者 | C6: 経営理念・ビジョン | R6: ③企業を取り巻く環境・関係者 | S6: 市場動向・規模・シェアの把握
C7: 経営哲学・考え・方針等 | S7: 競合他社との比較
S9: 顧客リピート率・新規開拓率
S10: 主な取引先企業の推移
S11: 顧客からのフィードバックの有無
C12: 経営意欲 | S12: 従業員定着率
C13: ※成長志向・現状維持など | S13: 勤続年数・平均給与
C15: 後継者の有無 | S15: 取引金融機関数・推移
C16: 後継者の育成状況 | S16: メインバンクとの関係
C17: 承継のタイミング・関係
B18: ②事業 | C18: 企業及び事業沿革 | R18: ④内部管理体制 | S18: 組織体制
C19: ※ターニングポイントの把握 | S19: 品質管理・情報管理体制
C21: 強み | S21: 事業計画・経営計画の有無
C22: 技術力・販売力等 | S22: 従業員との共有状況
S23: 社内会議の実施状況
C24: 弱み | S24: 研究開発・商品開発の体制
C25: 技術力・販売力等 | S25: 知的財産権の保有・活用状況
C27: ITに関する投資、活用の状況 | S27: 人材育成の取り組み状況
C28: 1時間当たり付加価値（生産性） | S28: 人材育成の仕組み
C29: 向上に向けた取り組み
B31: 現状認識 | R31: 将来目標
U35: 現状と目標のギャップ
G36: 課題 | R36: 対応策

Sheet 【参照】業種
A3: 日本標準分類 | D3: 【入力】財務分析 [ローカルベンチマーク23業種_ 大分類]に該当 | E3: 【入力】財務分析シート [ローカルベンチマーク23業種 _小分類]に該当
A4: 日本標準分類 _大分類 | B4: 日本標準分類 _中分類 | C4: 日本標準分類 _細分類
A5: A_農業，林業 | B5: 01_農業 | C5: 0100_主として管理事務を行う本社等 | D5: 01_農業 | E5: 0101_農業
A6: A_農業，林業 | B6: 01_農業 | C6: 0109_その他の管理，補助的経済活動を行う事業所 | D6: 01_農業 | E6: 0101_農業
A7: A_農業，林業 | B7: 01_農業 | C7: 0111_米作農業 | D7: 01_農業 | E7: 0101_農業
A8: A_農業，林業 | B8: 01_農業 | C8: 0112_米作以外の穀作農業 | D8: 01_農業 | E8: 0101_農業
A9: A_農業，林業 | B9: 01_農業 | C9: 0113_野菜作農業（きのこ類の栽培を含む） | D9: 01_農業 | E9: 0101_農業
A10: A_農業，林業 | B10: 01_農業 | C10: 0114_果樹作農業 | D10: 01_農業 | E10: 0101_農業
A11: A_農業，林業 | B11: 01_農業 | C11: 0115_花き作農業 | D11: 01_農業 | E11: 0101_農業
A12: A_農業，林業 | B12: 01_農業 | C12: 0116_工芸農作物農業 | D12: 01_農業 | E12: 0101_農業
A13: A_農業，林業 | B13: 01_農業 | C13: 0117_ばれいしょ・かんしょ作農業 | D13: 01_農業 | E13: 0101_農業
A14: A_農業，林業 | B14: 01_農業 | C14: 0119_その他の耕種農業 | D14: 01_農業 | E14: 0101_農業
A15: A_農業，林業 | B15: 01_農業 | C15: 0121_酪農業 | D15: 01_農業 | E15: 0101_農業
A16: A_農業，林業 | B16: 01_農業 | C16: 0122_肉用牛生産業 | D16: 01_農業 | E16: 0101_農業
A17: A_農業，林業 | B17: 01_農業 | C17: 0123_養豚業 | D17: 01_農業 | E17: 0101_農業
A18: A_農業，林業 | B18: 01_農業 | C18: 0124_養鶏業 | D18: 01_農業 | E18: 0101_農業
A19: A_農業，林業 | B19: 01_農業 | C19: 0125_畜産類似業 | D19: 01_農業 | E19: 0101_農業
A20: A_農業，林業 | B20: 01_農業 | C20: 0126_養蚕農業 | D20: 01_農業 | E20: 0101_農業
A21: A_農業，林業 | B21: 01_農業 | C21: 0129_その他の畜産農業 | D21: 01_農業 | E21: 0101_農業
A22: A_農業，林業 | B22: 01_農業 | C22: 0131_穀作サービス業 | D22: 01_農業 | E22: 0101_農業
A23: A_農業，林業 | B23: 01_農業 | C23: 0132_野菜作・果樹作サービス業 | D23: 01_農業 | E23: 0101_農業
A24: A_農業，林業 | B24: 01_農業 | C24: 0133_穀作、野菜作・果樹作以外の耕種サービス業 | D24: 01_農業 | E24: 0101_農業
A25: A_農業，林業 | B25: 01_農業 | C25: 0134_畜産サービス業（獣医業を除く） | D25: 01_農業 | E25: 0101_農業
A26: A_農業，林業 | B26: 01_農業 | C26: 0141_園芸サービス業 | D26: 01_農業 | E26: 0101_農業
A27: A_農業，林業 | B27: 02_林業 | C27: 0200_主として管理事務を行う本社等 | D27: 14_その他 | E27: 1400_その他業種
A28: A_農業，林業 | B28: 02_林業 | C28: 0209_その他の管理，補助的経済活動を行う事業所 | D28: 14_その他 | E28: 1400_その他業種
A29: A_農業，林業 | B29: 02_林業 | C29: 0211_育林業 | D29: 14_その他 | E29: 1400_その他業種
A30: A_農業，林業 | B30: 02_林業 | C30: 0221_素材生産業 | D30: 14_その他 | E30: 1400_その他業種
A31: A_農業，林業 | B31: 02_林業 | C31: 0231_製薪炭業 | D31: 14_その他 | E31: 1400_その他業種
A32: A_農業，林業 | B32: 02_林業 | C32: 0239_その他の特用林産物生産業（きのこ類の栽培を除く） | D32: 14_その他 | E32: 1400_その他業種
A33: A_農業，林業 | B33: 02_林業 | C33: 0241_育林サービス業 | D33: 14_その他 | E33: 1400_その他業種
A34: A_農業，林業 | B34: 02_林業 | C34: 0242_素材生産サービス業 | D34: 14_その他 | E34: 1400_その他業種
A35: A_農業，林業 | B35: 02_林業 | C35: 0243_山林種苗生産サービス業 | D35: 14_その他 | E35: 1400_その他業種
A36: A_農業，林業 | B36: 02_林業 | C36: 0249_その他の林業サービス業 | D36: 14_その他 | E36: 1400_その他業種
A37: A_農業，林業 | B37: 02_林業 | C37: 0299_その他の林業 | D37: 14_その他 | E37: 1400_その他業種
A38: B_漁業 | B38: 03_漁業（水産養殖業を除く） | C38: 0300_主として管理事務を行う本社等 | D38: 14_その他 | E38: 1400_その他業種
A39: B_漁業 | B39: 03_漁業（水産養殖業を除く） | C39: 0309_その他の管理，補助的経済活動を行う事業所 | D39: 14_その他 | E39: 1400_その他業種
A40: B_漁業 | B40: 03_漁業（水産養殖業を除く） | C40: 0311_底びき網漁業 | D40: 14_その他 | E40: 1400_その他業種
A41: B_漁業 | B41: 03_漁業（水産養殖業を除く） | C41: 0312_まき網漁業 | D41: 14_その他 | E41: 1400_その他業種
A42: B_漁業 | B42: 03_漁業（水産養殖業を除く） | C42: 0313_刺網漁業 | D42: 14_その他 | E42: 1400_その他業種
A43: B_漁業 | B43: 03_漁業（水産養殖業を除く） | C43: 0314_釣・はえ縄漁業 | D43: 14_その他 | E43: 1400_その他業種
A44: B_漁業 | B44: 03_漁業（水産養殖業を除く） | C44: 0315_定置網漁業 | D44: 14_その他 | E44: 1400_その他業種
A45: B_漁業 | B45: 03_漁業（水産養殖業を除く） | C45: 0316_地びき網・船びき網漁業 | D45: 14_その他 | E45: 1400_その他業種
A46: B_漁業 | B46: 03_漁業（水産養殖業を除く） | C46: 0317_採貝・採藻業 | D46: 14_その他 | E46: 1400_その他業種
A47: B_漁業 | B47: 03_漁業（水産養殖業を除く） | C47: 0318_捕鯨業 | D47: 14_その他 | E47: 1400_その他業種
A48: B_漁業 | B48: 03_漁業（水産養殖業を除く） | C48: 0319_その他の海面漁業 | D48: 14_その他 | E48: 1400_その他業種
A49: B_漁業 | B49: 03_漁業（水産養殖業を除く） | C49: 0321_内水面漁業 | D49: 14_その他 | E49: 1400_その他業種
A50: B_漁業 | B50: 04_水産養殖業 | C50: 0400_主として管理事務を行う本社等 | D50: 14_その他 | E50: 1400_その他業種
A51: B_漁業 | B51: 04_水産養殖業 | C51: 0409_その他の管理，補助的経済活動を行う事業所 | D51: 14_その他 | E51: 1400_その他業種
A52: B_漁業 | B52: 04_水産養殖業 | C52: 0411_魚類養殖業 | D52: 14_その他 | E52: 1400_その他業種
A53: B_漁業 | B53: 04_水産養殖業 | C53: 0412_貝類養殖業 | D53: 14_その他 | E53: 1400_その他業種
A54: B_漁業 | B54: 04_水産養殖業 | C54: 0413_藻類養殖業 | D54: 14_その他 | E54: 1400_その他業種
A55: B_漁業 | B55: 04_水産養殖業 | C55: 0414_真珠養殖業 | D55: 14_その他 | E55: 1400_その他業種
A56: B_漁業 | B56: 04_水産養殖業 | C56: 0415_種苗養殖業 | D56: 14_その他 | E56: 1400_その他業種
A57: B_漁業 | B57: 04_水産養殖業 | C57: 0419_その他の海面養殖業 | D57: 14_その他 | E57: 1400_その他業種
A58: B_漁業 | B58: 04_水産養殖業 | C58: 0421_内水面養殖業 | D58: 14_その他 | E58: 1400_その他業種
A59: C_鉱業，採石業，砂利採取業 | B59: 05_鉱業，採石業，砂利採取業 | C59: 0500_主として管理事務を行う本社等 | D59: 14_その他 | E59: 1400_その他業種
A60: C_鉱業，採石業，砂利採取業 | B60: 05_鉱業，採石業，砂利採取業 | C60: 0509_その他の管理，補助的経済活動を行う事業所 | D60: 14_その他 | E60: 1400_その他業種
A61: C_鉱業，採石業，砂利採取業 | B61: 05_鉱業，採石業，砂利採取業 | C61: 0511_金・銀鉱業 | D61: 14_その他 | E61: 1400_その他業種
A62: C_鉱業，採石業，砂利採取業 | B62: 05_鉱業，採石業，砂利採取業 | C62: 0512_鉛・亜鉛鉱業 | D62: 14_その他 | E62: 1400_その他業種
A63: C_鉱業，採石業，砂利採取業 | B63: 05_鉱業，採石業，砂利採取業 | C63: 0513_鉄鉱業 | D63: 14_その他 | E63: 1400_その他業種
A64: C_鉱業，採石業，砂利採取業 | B64: 05_鉱業，採石業，砂利採取業 | C64: 0519_その他の金属鉱業 | D64: 14_その他 | E64: 1400_その他業種
A65: C_鉱業，採石業，砂利採取業 | B65: 05_鉱業，採石業，砂利採取業 | C65: 0521_石炭鉱業（石炭選別業を含む） | D65: 14_その他 | E65: 1400_その他業種
A66: C_鉱業，採石業，砂利採取業 | B66: 05_鉱業，採石業，砂利採取業 | C66: 0522_亜炭鉱業 | D66: 14_その他 | E66: 1400_その他業種
A67: C_鉱業，採石業，砂利採取業 | B67: 05_鉱業，採石業，砂利採取業 | C67: 0531_原油鉱業 | D67: 14_その他 | E67: 1400_その他業種
A68: C_鉱業，採石業，砂利採取業 | B68: 05_鉱業，採石業，砂利採取業 | C68: 0532_天然ガス鉱業 | D68: 14_その他 | E68: 1400_その他業種
A69: C_鉱業，採石業，砂利採取業 | B69: 05_鉱業，採石業，砂利採取業 | C69: 0541_花こう岩・同類似岩石採石業 | D69: 14_その他 | E69: 1400_その他業種
A70: C_鉱業，採石業，砂利採取業 | B70: 05_鉱業，採石業，砂利採取業 | C70: 0542_石英粗面岩・同類似岩石採石業 | D70: 14_その他 | E70: 1400_その他業種
A71: C_鉱業，採石業，砂利採取業 | B71: 05_鉱業，採石業，砂利採取業 | C71: 0543_安山岩・同類似岩石採石業 | D71: 14_その他 | E71: 1400_その他業種
A72: C_鉱業，採石業，砂利採取業 | B72: 05_鉱業，採石業，砂利採取業 | C72: 0544_大理石採石業 | D72: 14_その他 | E72: 1400_その他業種
A73: C_鉱業，採石業，砂利採取業 | B73: 05_鉱業，採石業，砂利採取業 | C73: 0545_ぎょう灰岩採石業 | D73: 14_その他 | E73: 1400_その他業種
A74: C_鉱業，採石業，砂利採取業 | B74: 05_鉱業，採石業，砂利採取業 | C74: 0546_砂岩採石業 | D74: 14_その他 | E74: 1400_その他業種
A75: C_鉱業，採石業，砂利採取業 | B75: 05_鉱業，採石業，砂利採取業 | C75: 0547_粘板岩採石業 | D75: 14_その他 | E75: 1400_その他業種
A76: C_鉱業，採石業，砂利採取業 | B76: 05_鉱業，採石業，砂利採取業 | C76: 0548_砂・砂利・玉石採取業 | D76: 14_その他 | E76: 1400_その他業種
A77: C_鉱業，採石業，砂利採取業 | B77: 05_鉱業，採石業，砂利採取業 | C77: 0549_その他の採石業、砂・砂利・玉石採取業 | D77: 14_その他 | E77: 1400_その他業種
A78: C_鉱業，採石業，砂利採取業 | B78: 05_鉱業，採石業，砂利採取業 | C78: 0551_耐火粘土鉱業 | D78: 14_その他 | E78: 1400_その他業種
A79: C_鉱業，採石業，砂利採取業 | B79: 05_鉱業，採石業，砂利採取業 | C79: 0552_ろう石鉱業 | D79: 14_その他 | E79: 1400_その他業種
A80: C_鉱業，採石業，砂利採取業 | B80: 05_鉱業，採石業，砂利採取業 | C80: 0553_ドロマイト鉱業 | D80: 14_その他 | E80: 1400_その他業種
A81: C_鉱業，採石業，砂利採取業 | B81: 05_鉱業，採石業，砂利採取業 | C81: 0554_長石鉱業 | D81: 14_その他 | E81: 1400_その他業種
A82: C_鉱業，採石業，砂利採取業 | B82: 05_鉱業，採石業，砂利採取業 | C82: 0555_けい石鉱業 | D82: 14_その他 | E82: 1400_その他業種
A83: C_鉱業，採石業，砂利採取業 | B83: 05_鉱業，採石業，砂利採取業 | C83: 0556_天然けい砂鉱業 | D83: 14_その他 | E83: 1400_その他業種
A84: C_鉱業，採石業，砂利採取業 | B84: 05_鉱業，採石業，砂利採取業 | C84: 0557_石灰石鉱業 | D84: 14_その他 | E84: 1400_その他業種
A85: C_鉱業，採石業，砂利採取業 | B85: 05_鉱業，採石業，砂利採取業 | C85: 0559_その他の窯業原料用鉱物鉱業 | D85: 14_その他 | E85: 1400_その他業種
A86: C_鉱業，採石業，砂利採取業 | B86: 05_鉱業，採石業，砂利採取業 | C86: 0591_酸性白土鉱業 | D86: 14_その他 | E86: 1400_その他業種
A87: C_鉱業，採石業，砂利採取業 | B87: 05_鉱業，採石業，砂利採取業 | C87: 0592_ベントナイト鉱業 | D87: 14_その他 | E87: 1400_その他業種
A88: C_鉱業，採石業，砂利採取業 | B88: 05_鉱業，採石業，砂利採取業 | C88: 0593_けいそう土鉱業 | D88: 14_その他 | E88: 1400_その他業種
A89: C_鉱業，採石業，砂利採取業 | B89: 05_鉱業，採石業，砂利採取業 | C89: 0594_滑石鉱業 | D89: 14_その他 | E89: 1400_その他業種
A90: C_鉱業，採石業，砂利採取業 | B90: 05_鉱業，採石業，砂利採取業 | C90: 0599_他に分類されない鉱業 | D90: 14_その他 | E90: 1400_その他業種
A91: D_建設業 | B91: 06_総合工事業 | C91: 0600_主として管理事務を行う本社等 | D91: 02_建設業 | E91: 0201_建設業
A92: D_建設業 | B92: 06_総合工事業 | C92: 0609_その他の管理，補助的経済活動を行う事業所 | D92: 02_建設業 | E92: 0201_建設業
A93: D_建設業 | B93: 06_総合工事業 | C93: 0611_一般土木建築工事業 | D93: 02_建設業 | E93: 0201_建設業
A94: D_建設業 | B94: 06_総合工事業 | C94: 0621_土木工事業（別掲を除く） | D94: 02_建設業 | E94: 0201_建設業
A95: D_建設業 | B95: 06_総合工事業 | C95: 0622_造園工事業 | D95: 02_建設業 | E95: 0201_建設業
A96: D_建設業 | B96: 06_総合工事業 | C96: 0623_しゅんせつ工事業 | D96: 02_建設業 | E96: 0201_建設業
A97: D_建設業 | B97: 06_総合工事業 | C97: 0631_舗装工事業 | D97: 02_建設業 | E97: 0201_建設業
A98: D_建設業 | B98: 06_総合工事業 | C98: 0641_建築工事業（木造建築工事業を除く） | D98: 02_建設業 | E98: 0201_建設業
A99: D_建設業 | B99: 06_総合工事業 | C99: 0651_木造建築工事業 | D99: 02_建設業 | E99: 0201_建設業
A100: D_建設業 | B100: 06_総合工事業 | C100: 0661_建築リフォーム工事業 | D100: 02_建設業 | E100: 0201_建設業
A101: D_建設業 | B101: 07_職別工事業(設備工事業を除く) | C101: 0700_主として管理事務を行う本社等 | D101: 02_建設業 | E101: 0201_建設業
A102: D_建設業 | B102: 07_職別工事業(設備工事業を除く) | C102: 0709_その他の管理，補助的経済活動を行う事業所 | D102: 02_建設業 | E102: 0201_建設業
A103: D_建設業 | B103: 07_職別工事業(設備工事業を除く) | C103: 0711_大工工事業（型枠大工工事業を除く） | D103: 02_建設業 | E103: 0201_建設業
A104: D_建設業 | B104: 07_職別工事業(設備工事業を除く) | C104: 0712_型枠大工工事業 | D104: 02_建設業 | E104: 0201_建設業
A105: D_建設業 | B105: 07_職別工事業(設備工事業を除く) | C105: 0721_とび工事業 | D105: 02_建設業 | E105: 0201_建設業
A106: D_建設業 | B106: 07_職別工事業(設備工事業を除く) | C106: 0722_土工・コンクリート工事業 | D106: 02_建設業 | E106: 0201_建設業
A107: D_建設業 | B107: 07_職別工事業(設備工事業を除く) | C107: 0723_特殊コンクリート工事業 | D107: 02_建設業 | E107: 0201_建設業
A108: D_建設業 | B108: 07_職別工事業(設備工事業を除く) | C108: 0731_鉄骨工事業 | D108: 02_建設業 | E108: 0201_建設業
A109: D_建設業 | B109: 07_職別工事業(設備工事業を除く) | C109: 0732_鉄筋工事業 | D109: 02_建設業 | E109: 0201_建設業
A110: D_建設業 | B110: 07_職別工事業(設備工事業を除く) | C110: 0741_石工工事業 | D110: 02_建設業 | E110: 0201_建設業
A111: D_建設業 | B111: 07_職別工事業(設備工事業を除く) | C111: 0742_れんが工事業 | D111: 02_建設業 | E111: 0201_建設業
A112: D_建設業 | B112: 07_職別工事業(設備工事業を除く) | C112: 0743_タイル工事業 | D112: 02_建設業 | E112: 0201_建設業
A113: D_建設業 | B113: 07_職別工事業(設備工事業を除く) | C113: 0744_コンクリートブロック工事業 | D113: 02_建設業 | E113: 0201_建設業
A114: D_建設業 | B114: 07_職別工事業(設備工事業を除く) | C114: 0751_左官工事業 | D114: 02_建設業 | E114: 0201_建設業
A115: D_建設業 | B115: 07_職別工事業(設備工事業を除く) | C115: 0761_金属製屋根工事業 | D115: 02_建設業 | E115: 0201_建設業
A116: D_建設業 | B116: 07_職別工事業(設備工事業を除く) | C116: 0762_板金工事業 | D116: 02_建設業 | E116: 0201_建設業
A117: D_建設業 | B117: 07_職別工事業(設備工事業を除く) | C117: 0763_建築金物工事業 | D117: 02_建設業 | E117: 0201_建設業
A118: D_建設業 | B118: 07_職別工事業(設備工事業を除く) | C118: 0771_塗装工事業（道路標示・区画線工事業を除く） | D118: 02_建設業 | E118: 0201_建設業
A119: D_建設業 | B119: 07_職別工事業(設備工事業を除く) | C119: 0772_道路標示・区画線工事業 | D119: 02_建設業 | E119: 0201_建設業
A120: D_建設業 | B120: 07_職別工事業(設備工事業を除く) | C120: 0781_床工事業 | D120: 02_建設業 | E120: 0201_建設業
A121: D_建設業 | B121: 07_職別工事業(設備工事業を除く) | C121: 0782_内装工事業 | D121: 02_建設業 | E121: 0201_建設業
A122: D_建設業 | B122: 07_職別工事業(設備工事業を除く) | C122: 0791_ガラス工事業 | D122: 02_建設業 | E122: 0201_建設業
A123: D_建設業 | B123: 07_職別工事業(設備工事業を除く) | C123: 0792_金属製建具工事業 | D123: 02_建設業 | E123: 0201_建設業
A124: D_建設業 | B124: 07_職別工事業(設備工事業を除く) | C124: 0793_木製建具工事業 | D124: 02_建設業 | E124: 0201_建設業
A125: D_建設業 | B125: 07_職別工事業(設備工事業を除く) | C125: 0794_屋根工事業（金属製屋根工事業を除く） | D125: 02_建設業 | E125: 0201_建設業
A126: D_建設業 | B126: 07_職別工事業(設備工事業を除く) | C126: 0795_防水工事業 | D126: 02_建設業 | E126: 0201_建設業
A127: D_建設業 | B127: 07_職別工事業(設備工事業を除く) | C127: 0796_はつり・解体工事業 | D127: 02_建設業 | E127: 0201_建設業
A128: D_建設業 | B128: 07_職別工事業(設備工事業を除く) | C128: 0799_他に分類されない職別工事業 | D128: 02_建設業 | E128: 0201_建設業
A129: D_建設業 | B129: 08_設備工事業 | C129: 0800_主として管理事務を行う本社等 | D129: 02_建設業 | E129: 0201_建設業
A130: D_建設業 | B130: 08_設備工事業 | C130: 0809_その他の管理，補助的経済活動を行う事業所 | D130: 02_建設業 | E130: 0201_建設業
A131: D_建設業 | B131: 08_設備工事業 | C131: 0811_一般電気工事業 | D131: 02_建設業 | E131: 0201_建設業
A132: D_建設業 | B132: 08_設備工事業 | C132: 0812_電気配線工事業 | D132: 02_建設業 | E132: 0201_建設業
A133: D_建設業 | B133: 08_設備工事業 | C133: 0821_電気通信工事業（有線テレビジョン放送設備設置工事業を除く） | D133: 02_建設業 | E133: 0201_建設業
A134: D_建設業 | B134: 08_設備工事業 | C134: 0822_有線テレビジョン放送設備設置工事業 | D134: 02_建設業 | E134: 0201_建設業
A135: D_建設業 | B135: 08_設備工事業 | C135: 0823_信号装置工事業 | D135: 02_建設業 | E135: 0201_建設業
A136: D_建設業 | B136: 08_設備工事業 | C136: 0831_一般管工事業 | D136: 02_建設業 | E136: 0201_建設業
A137: D_建設業 | B137: 08_設備工事業 | C137: 0832_冷暖房設備工事業 | D137: 02_建設業 | E137: 0201_建設業
A138: D_建設業 | B138: 08_設備工事業 | C138: 0833_給排水・衛生設備工事業 | D138: 02_建設業 | E138: 0201_建設業
A139: D_建設業 | B139: 08_設備工事業 | C139: 0839_その他の管工事業 | D139: 02_建設業 | E139: 0201_建設業
A140: D_建設業 | B140: 08_設備工事業 | C140: 0841_機械器具設置工事業（昇降設備工事業を除く） | D140: 02_建設業 | E140: 0201_建設業
A141: D_建設業 | B141: 08_設備工事業 | C141: 0842_昇降設備工事業 | D141: 02_建設業 | E141: 0201_建設業
A142: D_建設業 | B142: 08_設備工事業 | C142: 0891_築炉工事業 | D142: 02_建設業 | E142: 0201_建設業
A143: D_建設業 | B143: 08_設備工事業 | C143: 0892_熱絶縁工事業 | D143: 02_建設業 | E143: 0201_建設業
A144: D_建設業 | B144: 08_設備工事業 | C144: 0893_道路標識設置工事業 | D144: 02_建設業 | E144: 0201_建設業
A145: D_建設業 | B145: 08_設備工事業 | C145: 0894_さく井工事業 | D145: 02_建設業 | E145: 0201_建設業
A146: E_製造業 | B146: 09_食料品製造業 | C146: 0900_主として管理事務を行う本社等 | D146: 03_製造業 | E146: 0301_食料品・飼料・飲料製造業
A147: E_製造業 | B147: 09_食料品製造業 | C147: 0909_その他の管理，補助的経済活動を行う事業所 | D147: 03_製造業 | E147: 0301_食料品・飼料・飲料製造業
A148: E_製造業 | B148: 09_食料品製造業 | C148: 0911_部分肉・冷凍肉製造業 | D148: 03_製造業 | E148: 0301_食料品・飼料・飲料製造業
A149: E_製造業 | B149: 09_食料品製造業 | C149: 0912_肉加工品製造業 | D149: 03_製造業 | E149: 0301_食料品・飼料・飲料製造業
A150: E_製造業 | B150: 09_食料品製造業 | C150: 0913_処理牛乳・乳飲料製造業 | D150: 03_製造業 | E150: 0301_食料品・飼料・飲料製造業
A151: E_製造業 | B151: 09_食料品製造業 | C151: 0914_乳製品製造業（処理牛乳、乳飲料を除く） | D151: 03_製造業 | E151: 0301_食料品・飼料・飲料製造業
A152: E_製造業 | B152: 09_食料品製造業 | C152: 0919_その他の畜産食料品製造業 | D152: 03_製造業 | E152: 0301_食料品・飼料・飲料製造業
A153: E_製造業 | B153: 09_食料品製造業 | C153: 0921_水産缶詰・瓶詰製造業 | D153: 03_製造業 | E153: 0301_食料品・飼料・飲料製造業
A154: E_製造業 | B154: 09_食料品製造業 | C154: 0922_海藻加工業 | D154: 03_製造業 | E154: 0301_食料品・飼料・飲料製造業
A155: E_製造業 | B155: 09_食料品製造業 | C155: 0923_水産練製品製造業 | D155: 03_製造業 | E155: 0301_食料品・飼料・飲料製造業
A156: E_製造業 | B156: 09_食料品製造業 | C156: 0924_塩干・塩蔵品製造業 | D156: 03_製造業 | E156: 0301_食料品・飼料・飲料製造業
A157: E_製造業 | B157: 09_食料品製造業 | C157: 0925_冷凍水産物製造業 | D157: 03_製造業 | E157: 0301_食料品・飼料・飲料製造業
A158: E_製造業 | B158: 09_食料品製造業 | C158: 0926_冷凍水産食品製造業 | D158: 03_製造業 | E158: 0301_食料品・飼料・飲料製造業
A159: E_製造業 | B159: 09_食料品製造業 | C159: 0929_その他の水産食料品製造業 | D159: 03_製造業 | E159: 0301_食料品・飼料・飲料製造業
A160: E_製造業 | B160: 09_食料品製造業 | C160: 0931_野菜缶詰・果実缶詰・農産保存食料品製造業（野菜漬物を除く） | D160: 03_製造業 | E160: 0301_食料品・飼料・飲料製造業
A161: E_製造業 | B161: 09_食料品製造業 | C161: 0932_野菜漬物製造業（缶詰、瓶詰、つぼ詰を除く） | D161: 03_製造業 | E161: 0301_食料品・飼料・飲料製造業
A162: E_製造業 | B162: 09_食料品製造業 | C162: 0941_味そ製造業 | D162: 03_製造業 | E162: 0301_食料品・飼料・飲料製造業
A163: E_製造業 | B163: 09_食料品製造業 | C163: 0942_しょう油・食用アミノ酸製造業 | D163: 03_製造業 | E163: 0301_食料品・飼料・飲料製造業
A164: E_製造業 | B164: 09_食料品製造業 | C164: 0943_ソース製造業 | D164: 03_製造業 | E164: 0301_食料品・飼料・飲料製造業
A165: E_製造業 | B165: 09_食料品製造業 | C165: 0944_食酢製造業 | D165: 03_製造業 | E165: 0301_食料品・飼料・飲料製造業
A166: E_製造業 | B166: 09_食料品製造業 | C166: 0949_その他の調味料製造業 | D166: 03_製造業 | E166: 0301_食料品・飼料・飲料製造業
A167: E_製造業 | B167: 09_食料品製造業 | C167: 0951_砂糖製造業（砂糖精製業を除く） | D167: 03_製造業 | E167: 0301_食料品・飼料・飲料製造業
A168: E_製造業 | B168: 09_食料品製造業 | C168: 0952_砂糖精製業 | D168: 03_製造業 | E168: 0301_食料品・飼料・飲料製造業
A169: E_製造業 | B169: 09_食料品製造業 | C169: 0953_ぶどう糖・水あめ・異性化糖製造業 | D169: 03_製造業 | E169: 0301_食料品・飼料・飲料製造業
A170: E_製造業 | B170: 09_食料品製造業 | C170: 0961_精米・精麦業 | D170: 03_製造業 | E170: 0301_食料品・飼料・飲料製造業
A171: E_製造業 | B171: 09_食料品製造業 | C171: 0962_小麦粉製造業 | D171: 03_製造業 | E171: 0301_食料品・飼料・飲料製造業
A172: E_製造業 | B172: 09_食料品製造業 | C172: 0969_その他の精穀・製粉業 | D172: 03_製造業 | E172: 0301_食料品・飼料・飲料製造業
A173: E_製造業 | B173: 09_食料品製造業 | C173: 0971_パン製造業 | D173: 03_製造業 | E173: 0301_食料品・飼料・飲料製造業
A174: E_製造業 | B174: 09_食料品製造業 | C174: 0972_生菓子製造業 | D174: 03_製造業 | E174: 0301_食料品・飼料・飲料製造業
A175: E_製造業 | B175: 09_食料品製造業 | C175: 0973_ビスケット類・干菓子製造業 | D175: 03_製造業 | E175: 0301_食料品・飼料・飲料製造業
A176: E_製造業 | B176: 09_食料品製造業 | C176: 0974_米菓製造業 | D176: 03_製造業 | E176: 0301_食料品・飼料・飲料製造業
A177: E_製造業 | B177: 09_食料品製造業 | C177: 0979_その他のパン・菓子製造業 | D177: 03_製造業 | E177: 0301_食料品・飼料・飲料製造業
A178: E_製造業 | B178: 09_食料品製造業 | C178: 0981_動植物油脂製造業（食用油脂加工業を除く） | D178: 03_製造業 | E178: 0301_食料品・飼料・飲料製造業
A179: E_製造業 | B179: 09_食料品製造業 | C179: 0982_食用油脂加工業 | D179: 03_製造業 | E179: 0301_食料品・飼料・飲料製造業
A180: E_製造業 | B180: 09_食料品製造業 | C180: 0991_でんぷん製造業 | D180: 03_製造業 | E180: 0301_食料品・飼料・飲料製造業
A181: E_製造業 | B181: 09_食料品製造業 | C181: 0992_めん類製造業 | D181: 03_製造業 | E181: 0301_食料品・飼料・飲料製造業
A182: E_製造業 | B182: 09_食料品製造業 | C182: 0993_豆腐・油揚製造業 | D182: 03_製造業 | E182: 0301_食料品・飼料・飲料製造業
A183: E_製造業 | B183: 09_食料品製造業 | C183: 0994_あん類製造業 | D183: 03_製造業 | E183: 0301_食料品・飼料・飲料製造業
A184: E_製造業 | B184: 09_食料品製造業 | C184: 0995_冷凍調理食品製造業 | D184: 03_製造業 | E184: 0301_食料品・飼料・飲料製造業
A185: E_製造業 | B185: 09_食料品製造業 | C185: 0996_そう（惣）菜製造業 | D185: 03_製造業 | E185: 0301_食料品・飼料・飲料製造業
A186: E_製造業 | B186: 09_食料品製造業 | C186: 0997_すし・弁当・調理パン製造業 | D186: 03_製造業 | E186: 0301_食料品・飼料・飲料製造業
A187: E_製造業 | B187: 09_食料品製造業 | C187: 0998_レトルト食品製造業 | D187: 03_製造業 | E187: 0301_食料品・飼料・飲料製造業
A188: E_製造業 | B188: 09_食料品製造業 | C188: 0999_他に分類されない食料品製造業 | D188: 03_製造業 | E188: 0301_食料品・飼料・飲料製造業
A189: E_製造業 | B189: 10_飲料・たばこ・飼料製造業 | C189: 1000_主として管理事務を行う本社等 | D189: 03_製造業 | E189: 0306_その他の製造業
A190: E_製造業 | B190: 10_飲料・たばこ・飼料製造業 | C190: 1009_その他の管理，補助的経済活動を行う事業所 | D190: 03_製造業 | E190: 0306_その他の製造業
A191: E_製造業 | B191: 10_飲料・たばこ・飼料製造業 | C191: 1011_清涼飲料製造業 | D191: 03_製造業 | E191: 0301_食料品・飼料・飲料製造業
A192: E_製造業 | B192: 10_飲料・たばこ・飼料製造業 | C192: 1021_果実酒製造業 | D192: 03_製造業 | E192: 0301_食料品・飼料・飲料製造業
A193: E_製造業 | B193: 10_飲料・たばこ・飼料製造業 | C193: 1022_ビール類製造業 | D193: 03_製造業 | E193: 0301_食料品・飼料・飲料製造業
A194: E_製造業 | B194: 10_飲料・たばこ・飼料製造業 | C194: 1023_清酒製造業 | D194: 03_製造業 | E194: 0301_食料品・飼料・飲料製造業
A195: E_製造業 | B195: 10_飲料・たばこ・飼料製造業 | C195: 1024_蒸留酒・混成酒製造業 | D195: 03_製造業 | E195: 0301_食料品・飼料・飲料製造業
A196: E_製造業 | B196: 10_飲料・たばこ・飼料製造業 | C196: 1031_製茶業 | D196: 03_製造業 | E196: 0301_食料品・飼料・飲料製造業
A197: E_製造業 | B197: 10_飲料・たばこ・飼料製造業 | C197: 1032_コーヒー製造業 | D197: 03_製造業 | E197: 0301_食料品・飼料・飲料製造業
A198: E_製造業 | B198: 10_飲料・たばこ・飼料製造業 | C198: 1041_製氷業 | D198: 03_製造業 | E198: 0301_食料品・飼料・飲料製造業
A199: E_製造業 | B199: 10_飲料・たばこ・飼料製造業 | C199: 1051_たばこ製造業（葉たばこ処理業を除く） | D199: 03_製造業 | E199: 0306_その他の製造業
A200: E_製造業 | B200: 10_飲料・たばこ・飼料製造業 | C200: 1052_葉たばこ処理業 | D200: 03_製造業 | E200: 0306_その他の製造業
A201: E_製造業 | B201: 10_飲料・たばこ・飼料製造業 | C201: 1061_配合飼料製造業 | D201: 03_製造業 | E201: 0301_食料品・飼料・飲料製造業
A202: E_製造業 | B202: 10_飲料・たばこ・飼料製造業 | C202: 1062_単体飼料製造業 | D202: 03_製造業 | E202: 0301_食料品・飼料・飲料製造業
... 1262 more rows

Sheet 【参照】業種区分 (hidden)
A2: 01_農業 | B2: 0101_農業
A3: 02_建設業 | B3: 0201_建設業
A4: 03_製造業 | B4: 0301_食料品・飼料・飲料製造業 | C4: 0302_化学工業・関連製品製造業 | D4: 0303_鉄鋼業、非鉄金属製造業 | E4: 0304_金属製品製造業 | F4: 0305_一般・電気機械器具製造業 | G4: 0306_その他の製造業
A5: 04_卸売業 | B5: 0401_化学製品卸売業 | C5: 0402_繊維関連製品卸売業 | D5: 0403_食料品卸売業 | E5: 0404_その他の卸売業
A6: 05_小売業 | B6: 0501_小売業
A7: 06_飲食業 | B7: 0601_飲食業
A8: 07_不動産業 | B8: 0701_不動産業
A9: 08_運輸業 | B9: 0801_運輸業
A10: 09_エネルギー | B10: 0901_エネルギー
A11: 10_サービス業 | B11: 1001_物品賃貸業 | C11: 1002_娯楽業 | D11: 1003_広告・調査・情報サービス業 | E11: 1004_事業サービス業 | F11: 1005_専門サービス業 | G11: 1006_その他のサービス業
A12: 11_医療業 | B12: 1101_医療業
A13: 12_保険衛生、廃棄物処理業 | B13: 1201_保険衛生、廃棄物処理業
A14: 13_観光業 | B14: 1301_観光業
A15: 14_その他 | B15: 1400_その他業種

Sheet 【参照】企業規模
A2: 事業規模 | C2: =IF(F22=1,"分析対象外",IF(SUM(F15:F20)=1,"中規模事業者",IF(SUM(F10:F13)=1,"小規模事業者","算出不可"))) -> 中規模事業者
A4: 事業規模区分 | B4: 中小企業基本法 中小企業定義 業種区分 | C4: ローカルベンチマーク業種大分類 | D4: 資本金 | E4: 従業員 | F4: 該当フラグ | H4: ロカベン23業種_大分類
A5: 中小規模 | B5: 卸売業 | C5: 06_卸売業 | D5: 1億円以下 | E5: 100人以下 | F5: =IF(AND('B 【入力要】財務分析'!D9="04_卸売業",OR(AND(0<'B 【入力要】財務分析'!$D$13,'B 【入力要】財務分析'!$D$13<=100000),AND(0<'B 【入力要】財務分析'!$D$12,0<'B 【入力要】財務分析'!$D$12<=100))),1,0) -> 0 | H5: 01_農業
B6: 小売業 | C6: 05_小売業、06_飲食業 | D6: 5千万以下 | E6: 50人以下 | F6: =IF(AND(OR('B 【入力要】財務分析'!D9="05_小売業",'B 【入力要】財務分析'!D9="06_飲食業"),OR(AND(0<'B 【入力要】財務分析'!$D$13,'B 【入力要】財務分析'!$D$13<=50000),AND(0<'B 【入力要】財務分析'!$D$12,'B 【入力要】財務分析'!$D$12<=50))),1,0) -> 0 | H6: 02_建設業
B7: サービス業 | C7: 10_サービス業、11_医療業、12_保健衛生、廃棄物処理業、13_観光業 | D7: 5千万以下 | E7: 100人以下 | F7: =IF(AND(OR('B 【入力要】財務分析'!D9="10_サービス業",'B 【入力要】財務分析'!D9="11_医療業",'B 【入力要】財務分析'!D9="12_保険衛生、廃棄物処理業",'B 【入力要】財務分析'!D9="13_観光業"),OR(AND(0<'B 【入力要】財務分析'!$D$13,'B 【入力要】財務分析'!$D$13<=50000),AND(0<'B 【入力要】財務分析'!$D$12,'B 【入力要】財務分析'!$D$12<=100))),1,0) -> 1 | H7: 03_製造業
B8: 製造業 その他 | C8: 01_農業、02_建設業、03_製造業、07_不動産業、08_運輸業、09_エネルギー、14_その他 | D8: 3億円以下 | E8: 300人以下 | F8: =IF(AND(OR('B 【入力要】財務分析'!D9="01_農業",'B 【入力要】財務分析'!D9="02_建設業",'B 【入力要】財務分析'!D9="03_製造業",'B 【入力要】財務分析'!D9="07_不動産業",'B 【入力要】財務分析'!D9="08_運輸業",'B 【入力要】財務分析'!D9="09_エネルギー",'B 【入力要】財務分析'!D9="14_その他"),OR(AND(0<'B 【入力要】財務分析'!$D$13,'B 【入力要】財務分析'!$D$13<=300000),AND(0<'B 【入力要】財務分析'!$D$12,'B 【入力要】財務分析'!$D$12<=300))),1,0) -> 0 | H8: 04_卸売業
H9: 05_小売業
A10: 小規模 | B10: 卸売業 | C10: 06_卸売業 | E10: 5人以下 | F10: =IF(AND(F5=1,0<='B 【入力要】財務分析'!$D$12,'B 【入力要】財務分析'!$D$12<=5),1,0) -> 0 | H10: 06_飲食業
B11: 小売業 | C11: 05_小売業、06_飲食業 | E11: 5人以下 | F11: =IF(AND(F6=1,0<='B 【入力要】財務分析'!$D$12,'B 【入力要】財務分析'!$D$12<=5),1,0) -> 0 | H11: 07_不動産業
B12: サービス業 | C12: 10_サービス業、11_医療業、12_保健衛生、廃棄物処理業、13_観光業 | E12: 5人以下 | F12: =IF(AND(F7=1,0<='B 【入力要】財務分析'!$D$12,'B 【入力要】財務分析'!$D$12<=5),1,0) -> 0 | H12: 08_運輸業
B13: 製造業 その他 | C13: 01_農業、02_建設業、03_製造業、07_不動産業、08_運輸業、09_エネルギー、14_その他 | E13: 20人以下 | F13: =IF(AND(F8=1,0<='B 【入力要】財務分析'!$D$12,'B 【入力要】財務分析'!$D$12<=20),1,0) -> 0 | H13: 09_エネルギー
H14: 10_サービス業
A15: 中規模 | B15: 卸売業 | C15: 06_卸売業 | D15: 中小規模該当の企業の内、小規模に該当する企業以外の企業 | F15: =IF(AND(F5=1,F10=0),1,IF(AND(F5=1,F10=1),0,0)) -> 0 | H15: 11_医療業
B16: 小売業 | C16: 05_小売業、06_飲食業 | F16: =IF(AND(F6=1,F11=0),1,IF(AND(F6=1,F11=1),0,0)) -> 0 | H16: 12_保険衛生、廃棄物処理業
B17: サービス業 | C17: 10_サービス業、11_医療業、12_保健衛生、廃棄物処理業、13_観光業 | F17: =IF(AND(F7=1,F12=0),1,IF(AND(F7=1,F12=1),0,0)) -> 1 | H17: 13_観光業
B18: 製造業 その他 | C18: 01_農業、02_建設業、03_製造業、07_不動産業、08_運輸業、09_エネルギー、14_その他 | F18: =IF(AND(F8=1,F13=0),1,IF(AND(F8=1,F13=1),0,0)) -> 0 | H18: 14_その他
A20: 中堅企業 | F20: =IF(SUM(F5:F18)+F22=0,1,0) -> 0
A22: 分析対象外 | F22: =IF(OR('B 【入力要】財務分析'!D9="エラー_日本標準分類を入力し直して下さい",'B 【入力要】財務分析'!D9="",AND(OR('B 【入力要】財務分析'!$D$12=0,'B 【入力要】財務分析'!$D$12=""),OR('B 【入力要】財務分析'!D13=0,'B 【入力要】財務分析'!D13=""))),1,0) -> 0

Sheet 【参照】売上増加率基準値
A1: 指標カテゴリ | B1: 大分類 | C1: 小分類 | D1: 事業規模 | E1: 中央値 | F1: 標準偏差 | G1: ⅳ | H1: ⅲ | I1: ⅱ | J1: ⅰ
A2: ①売上増加率 | B2: 01_農業 | C2: 0101_農業 | D2: 中規模事業者 | E2: 0.05696639341 | F2: 0.08264230474 | G2: -0.04820797072 | H2: 0.03297313916 | I2: 0.1000870899 | J2: 0.1834817959
A3: ①売上増加率 | B3: 01_農業 | C3: 0101_農業 | D3: 小規模事業者 | E3: 0.05263552184 | F3: 0.1344708954 | G3: -0.07408170677 | H3: 0.01869966899 | I3: 0.09418813373 | J3: 0.1829121257
A4: ①売上増加率 | B4: 02_建設業 | C4: 0201_建設業 | D4: 中規模事業者 | E4: 0.05226128278 | F4: 0.1064230477 | G4: -0.07143340683 | H4: 0.009645110286 | I4: 0.1009691135 | J4: 0.2075059482
A5: ①売上増加率 | B5: 02_建設業 | C5: 0201_建設業 | D5: 小規模事業者 | E5: 0.05875727575 | F5: 0.1593798951 | G5: -0.1118164831 | H5: 0.001270468074 | I5: 0.1260331679 | J5: 0.2931717739
A6: ①売上増加率 | B6: 03_製造業 | C6: 0306_その他の製造業 | D6: 中規模事業者 | E6: 0.0230621599 | F6: 0.08256816825 | G6: -0.06919391423 | H6: -0.006294359545 | I6: 0.05730439116 | J6: 0.1363883802
A7: ①売上増加率 | B7: 03_製造業 | C7: 0306_その他の製造業 | D7: 小規模事業者 | E7: 0.02915452042 | F7: 0.1204417901 | G7: -0.09301039241 | H7: -0.01018830717 | I7: 0.074316268 | J7: 0.1930980094
A8: ①売上増加率 | B8: 03_製造業 | C8: 0301_食料品・飼料・飲料製造業 | D8: 中規模事業者 | E8: 0.02472537024 | F8: 0.08139267165 | G8: -0.05832720744 | H8: 0.0004010764043 | I8: 0.05410123818 | J8: 0.1274617075
A9: ①売上増加率 | B9: 03_製造業 | C9: 0301_食料品・飼料・飲料製造業 | D9: 小規模事業者 | E9: 0.02597389622 | F9: 0.1194341036 | G9: -0.07450896958 | H9: -0.007505505917 | I9: 0.06324060515 | J9: 0.1981384366
A10: ①売上増加率 | B10: 03_製造業 | C10: 0302_化学工業・関連製品製造業 | D10: 中規模事業者 | E10: 0.0121276898 | F10: 0.07387004842 | G10: -0.061701639 | H10: -0.01092885188 | I10: 0.03962554108 | J10: 0.08873864581
A11: ①売上増加率 | B11: 03_製造業 | C11: 0302_化学工業・関連製品製造業 | D11: 小規模事業者 | E11: 0.0117408388 | F11: 0.09380525019 | G11: -0.08289806006 | H11: -0.02881920508 | I11: 0.04145702798 | J11: 0.1249107754
A12: ①売上増加率 | B12: 03_製造業 | C12: 0303_鉄鋼業、非鉄金属製造業 | D12: 中規模事業者 | E12: 0.002230227407 | F12: 0.07446692018 | G12: -0.08176950025 | H12: -0.02388585934 | I12: 0.0323650632 | J12: 0.09771599678
A13: ①売上増加率 | B13: 03_製造業 | C13: 0303_鉄鋼業、非鉄金属製造業 | D13: 小規模事業者 | E13: 0.01422684267 | F13: 0.09275479148 | G13: -0.1110543783 | H13: -0.0322851732 | I13: 0.04571541053 | J13: 0.1381491498
A14: ①売上増加率 | B14: 03_製造業 | C14: 0304_金属製品製造業 | D14: 中規模事業者 | E14: 0.03243511505 | F14: 0.08142652759 | G14: -0.07344299691 | H14: -0.00176558937 | I14: 0.06345823006 | J14: 0.1386129382
A15: ①売上増加率 | B15: 03_製造業 | C15: 0304_金属製品製造業 | D15: 小規模事業者 | E15: 0.03968561002 | F15: 0.1205631657 | G15: -0.07940089498 | H15: -0.001551758757 | I15: 0.08624676094 | J15: 0.2089276458
A16: ①売上増加率 | B16: 03_製造業 | C16: 0305_一般・電気機械器具製造業 | D16: 中規模事業者 | E16: 0.03986397633 | F16: 0.09096751446 | G16: -0.06772769903 | H16: 0.004882667362 | I16: 0.08121357789 | J16: 0.1728522559
A17: ①売上増加率 | B17: 03_製造業 | C17: 0305_一般・電気機械器具製造業 | D17: 小規模事業者 | E17: 0.05225710883 | F17: 0.1343292338 | G17: -0.08676790763 | H17: 0.007743510172 | I17: 0.1071514954 | J17: 0.2435732638
A18: ①売上増加率 | B18: 不使用 | C18: 不使用 | D18: 中規模事業者
A19: ①売上増加率 | B19: 不使用 | C19: 不使用 | D19: 小規模事業者
A20: ①売上増加率 | B20: 04_卸売業 | C20: 0404_その他の卸売業 | D20: 中規模事業者 | E20: 0.01496759417 | F20: 0.08986009779 | G20: -0.08870737115 | H20: -0.01552740525 | I20: 0.04652718284 | J20: 0.1281560161
A21: ①売上増加率 | B21: 04_卸売業 | C21: 0404_その他の卸売業 | D21: 小規模事業者 | E21: 0.01560218873 | F21: 0.1595383639 | G21: -0.1232740823 | H21: -0.02675784488 | I21: 0.06894586029 | J21: 0.2382309735
A22: ①売上増加率 | B22: 04_卸売業 | C22: 0401_化学製品卸売業 | D22: 中規模事業者 | E22: 0.01088924183 | F22: 0.06988721723 | G22: -0.07262764574 | H22: -0.01227820258 | I22: 0.03637000758 | J22: 0.09217905202
A23: ①売上増加率 | B23: 04_卸売業 | C23: 0401_化学製品卸売業 | D23: 小規模事業者 | E23: 0.0009411783318 | F23: 0.1504514913 | G23: -0.1067794664 | H23: -0.03013269492 | I23: 0.03495340343 | J23: 0.2079558261
A24: ①売上増加率 | B24: 04_卸売業 | C24: 0402_繊維関連製品卸売業 | D24: 中規模事業者 | E24: 0.01166527128 | F24: 0.09626809016 | G24: -0.08815898913 | H24: -0.02228125531 | I24: 0.04187956701 | J24: 0.1456521614
A25: ①売上増加率 | B25: 04_卸売業 | C25: 0402_繊維関連製品卸売業 | D25: 小規模事業者 | E25: 0.009667664947 | F25: 0.2062813318 | G25: -0.1708684078 | H25: -0.0385305949 | I25: 0.08258140908 | J25: 0.2808651847
A26: ①売上増加率 | B26: 04_卸売業 | C26: 0403_食料品卸売業 | D26: 中規模事業者 | E26: 0.01905128526 | F26: 0.08399867596 | G26: -0.06471004179 | H26: -0.009256339246 | I26: 0.05141136239 | J26: 0.1349478913
A27: ①売上増加率 | B27: 04_卸売業 | C27: 0403_食料品卸売業 | D27: 小規模事業者 | E27: 0.01797910479 | F27: 0.1472159458 | G27: -0.1088496591 | H27: -0.02204740008 | I27: 0.06785859384 | J27: 0.2372241975
A28: ①売上増加率 | B28: 不使用 | C28: 不使用 | D28: 中規模事業者
A29: ①売上増加率 | B29: 不使用 | C29: 不使用 | D29: 小規模事業者
A30: ①売上増加率 | B30: 05_小売業 | C30: 0501_小売業 | D30: 中規模事業者 | E30: 0.002396558709 | F30: 0.1077450512 | G30: -0.1069046929 | H30: -0.03479834417 | I30: 0.04206449217 | J30: 0.1437965585
A31: ①売上増加率 | B31: 05_小売業 | C31: 0501_小売業 | D31: 小規模事業者 | E31: -0.01104007862 | F31: 0.1427345841 | G31: -0.161154174 | H31: -0.05972328544 | I31: 0.03124574735 | J31: 0.1699661589
A32: ①売上増加率 | B32: 06_飲食業 | C32: 0601_飲食業 | D32: 中規模事業者 | E32: 0.05042098409 | F32: 0.1364342832 | G32: -0.06485708374 | H32: 0.01151342106 | I32: 0.1085307071 | J32: 0.2714590223
A33: ①売上増加率 | B33: 06_飲食業 | C33: 0601_飲食業 | D33: 小規模事業者 | E33: 0.04583690899 | F33: 0.1134856913 | G33: -0.1725197212 | H33: -0.0008610742911 | I33: 0.06689537386 | J33: 0.1342727736
A34: ①売上増加率 | B34: 07_不動産業 | C34: 0701_不動産業 | D34: 中規模事業者 | E34: 0.06187150778 | F34: 0.1350459742 | G34: -0.0680983046 | H34: 0.02006779082 | I34: 0.1173600455 | J34: 0.2895227097
A35: ①売上増加率 | B35: 07_不動産業 | C35: 0701_不動産業 | D35: 小規模事業者 | E35: 0.07659850189 | F35: 0.2265056017 | G35: -0.1008649027 | H35: 0.01206786854 | I35: 0.1804326357 | J35: 0.4601114215
A36: ①売上増加率 | B36: 08_運輸業 | C36: 0801_運輸業 | D36: 中規模事業者 | E36: 0.03007664149 | F36: 0.1043372551 | G36: -0.05100120081 | H36: 0.003966599833 | I36: 0.06576041755 | J36: 0.1826960412
A37: ①売上増加率 | B37: 08_運輸業 | C37: 0801_運輸業 | D37: 小規模事業者 | E37: 0.02757981958 | F37: 0.1370492676 | G37: -0.08563784491 | H37: -0.01048689799 | I37: 0.07477563128 | J37: 0.2092661617
A38: ①売上増加率 | B38: 09_エネルギー | C38: 0901_エネルギー | D38: 中規模事業者 | E38: -0.05215924947 | F38: 0.1214189616 | G38: -0.1006314172 | H38: -0.07925650747 | I38: -9.59158428e-05 | J38: 0.126961577
A39: ①売上増加率 | B39: 09_エネルギー | C39: 0901_エネルギー | D39: 小規模事業者 | E39: -0.00341913873 | F39: 0.316728637 | G39: -0.2001012885 | H39: -0.02043625364 | I39: 0.2721654572 | J39: 0.7556664611
A40: ①売上増加率 | B40: 10_サービス業 | C40: 1006_その他のサービス業 | D40: 中規模事業者 | E40: 0.04195914814 | F40: 0.114390533 | G40: -0.06678480931 | H40: 0.007518015671 | I40: 0.08679014571 | J40: 0.21243846
A41: ①売上増加率 | B41: 10_サービス業 | C41: 1006_その他のサービス業 | D41: 小規模事業者 | E41: 0.03415274114 | F41: 0.1893338591 | G41: -0.1314063809 | H41: -0.01980367925 | I41: 0.1122515093 | J41: 0.3293920692
A42: ①売上増加率 | B42: 10_サービス業 | C42: 1001_物品賃貸業 | D42: 中規模事業者 | E42: 0.04375596037 | F42: 0.09037676938 | G42: -0.04676883138 | H42: 0.0131210607 | I42: 0.07905171422 | J42: 0.1492338176
A43: ①売上増加率 | B43: 10_サービス業 | C43: 1001_物品賃貸業 | D43: 小規模事業者 | E43: 0.01644426669 | F43: 0.122442988 | G43: -0.1233360693 | H43: -0.03903739712 | I43: 0.07294884598 | J43: 0.1953392246
A44: ①売上増加率 | B44: 10_サービス業 | C44: 1002_娯楽業 | D44: 中規模事業者 | E44: -0.002546787044 | F44: 0.09929718923 | G44: -0.1165286044 | H44: -0.03534472923 | I44: 0.02637741621 | J44: 0.1256226354
A45: ①売上増加率 | B45: 10_サービス業 | C45: 1002_娯楽業 | D45: 小規模事業者 | E45: -0.0111099111 | F45: 0.1310548719 | G45: -0.1646593156 | H45: -0.06655720922 | I45: 0.06436823585 | J45: 0.1937264551
A46: ①売上増加率 | B46: 10_サービス業 | C46: 1003_広告・調査・情報サービス業 | D46: 中規模事業者 | E46: 0.05470657961 | F46: 0.1272283908 | G46: -0.0650386024 | H46: 0.01515576041 | I46: 0.1119846371 | J46: 0.2645549856
A47: ①売上増加率 | B47: 10_サービス業 | C47: 1003_広告・調査・情報サービス業 | D47: 小規模事業者 | E47: 0.05668218722 | F47: 0.1838075914 | G47: -0.1179685291 | H47: -0.01663951384 | I47: 0.1386638418 | J47: 0.3758984434
A48: ①売上増加率 | B48: 10_サービス業 | C48: 1004_事業サービス業 | D48: 中規模事業者 | E48: 0.04277567201 | F48: 0.1171403053 | G48: -0.05191120128 | H48: 0.01074491255 | I48: 0.08707984465 | J48: 0.2207232798
A49: ①売上増加率 | B49: 10_サービス業 | C49: 1004_事業サービス業 | D49: 小規模事業者 | E49: 0.04234474402 | F49: 0.1896140754 | G49: -0.1501746163 | H49: -0.008259224042 | I49: 0.09934632053 | J49: 0.3054909366
A50: ①売上増加率 | B50: 10_サービス業 | C50: 1005_専門サービス業 | D50: 中規模事業者 | E50: 0.05774338218 | F50: 0.1132029172 | G50: -0.05163890422 | H50: 0.01902620149 | I50: 0.1034351377 | J50: 0.21243846
A51: ①売上増加率 | B51: 10_サービス業 | C51: 1005_専門サービス業 | D51: 小規模事業者 | E51: 0.07357490468 | F51: 0.237102119 | G51: -0.1212490278 | H51: -0.002654354774 | I51: 0.1892374972 | J51: 0.4619322819
A52: ①売上増加率 | B52: 不使用 | C52: 不使用 | D52: 中規模事業者
A53: ①売上増加率 | B53: 不使用 | C53: 不使用 | D53: 小規模事業者
A54: ①売上増加率 | B54: 11_医療業 | C54: 1101_医療業 | D54: 中規模事業者 | E54: 0.02325296459 | F54: 0.1076186023 | G54: -0.03636767317 | H54: 0.004931698609 | I54: 0.04990231702 | J54: 0.2223431475
A55: ①売上増加率 | B55: 11_医療業 | C55: 1101_医療業 | D55: 小規模事業者 | E55: 0.09947240721 | F55: 0.1523647778 | G55: -0.2091079013 | H55: -0.0008967426059 | I55: 0.1758140866 | J55: 0.222663229
A56: ①売上増加率 | B56: 12_保険衛生、廃棄物処理業 | C56: 1201_保険衛生、廃棄物処理業 | D56: 中規模事業者 | E56: 0.03027923024 | F56: 0.08354600497 | G56: -0.05910457478 | H56: 0.004271335713 | I56: 0.06355957751 | J56: 0.1534229999
A57: ①売上増加率 | B57: 12_保険衛生、廃棄物処理業 | C57: 1201_保険衛生、廃棄物処理業 | D57: 小規模事業者 | E57: 0.04757092021 | F57: 0.1430305497 | G57: -0.1363288228 | H57: -0.00162071705 | I57: 0.09384657076 | J57: 0.316231655
A58: ①売上増加率 | B58: 13_観光業 | C58: 1301_観光業 | D58: 中規模事業者 | E58: 0.04052844895 | F58: 0.09698991181 | G58: -0.04831752859 | H58: 0.009259388762 | I58: 0.08083931423 | J58: 0.1999086308
A59: ①売上増加率 | B59: 13_観光業 | C59: 1301_観光業 | D59: 小規模事業者 | E59: 0.04805377828 | F59: 0.1258721042 | G59: -0.09657808066 | H59: 0.01318183894 | I59: 0.1205135734 | J59: 0.2394886494
A60: ①売上増加率 | B60: 14_その他 | C60: 1400_その他業種 | D60: 中規模事業者 | E60: 0.02878781673 | F60: 0.1046877299 | G60: -0.08020820952 | H60: -0.005169841948 | I60: 0.06954448781 | J60: 0.1794356562
A61: ①売上増加率 | B61: 14_その他 | C61: 1400_その他業種 | D61: 小規模事業者 | E61: 0.0511935702 | F61: 0.1641182939 | G61: -0.1149000984 | H61: -0.004253924399 | I61: 0.118618831 | J61: 0.2939318943

Sheet 【参照】営業利益率基準値
A1: 指標カテゴリ | B1: 大分類 | C1: 小分類 | D1: 事業規模 | E1: 中央値 | F1: 標準偏差 | G1: ⅳ | H1: ⅲ | I1: ⅱ | J1: ⅰ
A2: ②営業利益率 | B2: 01_農業 | C2: 0101_農業 | D2: 中規模事業者 | E2: 0.02095740446 | F2: 0.04650385363 | G2: -0.03263835748 | H2: 0.009559382323 | I2: 0.04463731766 | J2: 0.09911527424
A3: ②営業利益率 | B3: 01_農業 | C3: 0101_農業 | D3: 小規模事業者 | E3: 0.009344846128 | F3: 0.07013566623 | G3: -0.1198536053 | H3: -0.01825170674 | I3: 0.0337159587 | J3: 0.08609139061
A4: ②営業利益率 | B4: 02_建設業 | C4: 0201_建設業 | D4: 中規模事業者 | E4: 0.02937243543 | F4: 0.03373482615 | G4: -0.005779995841 | H4: 0.01665923056 | I4: 0.04601573719 | J4: 0.08265879202
A5: ②営業利益率 | B5: 02_建設業 | C5: 0201_建設業 | D5: 小規模事業者 | E5: 0.01707259917 | F5: 0.04546498361 | G5: -0.04519656819 | H5: 0.004350987792 | I5: 0.03379495398 | J5: 0.07343241041
A6: ②営業利益率 | B6: 03_製造業 | C6: 0306_その他の製造業 | D6: 中規模事業者 | E6: 0.02528369904 | F6: 0.03958925229 | G6: -0.01895140027 | H6: 0.01163886962 | I6: 0.04355922886 | J6: 0.08786098005
A7: ②営業利益率 | B7: 03_製造業 | C7: 0306_その他の製造業 | D7: 小規模事業者 | E7: 0.01944361959 | F7: 0.05133652852 | G7: -0.04990183781 | H7: 0.00365607312 | I7: 0.03738859629 | J7: 0.08336049094
A8: ②営業利益率 | B8: 03_製造業 | C8: 0301_食料品・飼料・飲料製造業 | D8: 中規模事業者 | E8: 0.01546036339 | F8: 0.03505608096 | G8: -0.0235927333 | H8: 0.006403342278 | I8: 0.02777917055 | J8: 0.06739857252
A9: ②営業利益率 | B9: 03_製造業 | C9: 0301_食料品・飼料・飲料製造業 | D9: 小規模事業者 | E9: 0.01188318045 | F9: 0.04503114085 | G9: -0.05228958177 | H9: -0.0005406838612 | I9: 0.02518668862 | J9: 0.05615672421
A10: ②営業利益率 | B10: 03_製造業 | C10: 0302_化学工業・関連製品製造業 | D10: 中規模事業者 | E10: 0.03214569302 | F10: 0.04515317507 | G10: -0.01837366046 | H10: 0.0160331555 | I10: 0.05132127056 | J10: 0.107475601
A11: ②営業利益率 | B11: 03_製造業 | C11: 0302_化学工業・関連製品製造業 | D11: 小規模事業者 | E11: 0.02265800353 | F11: 0.05583003937 | G11: -0.04169611714 | H11: 0.008718481436 | I11: 0.04008745915 | J11: 0.1045969271
A12: ②営業利益率 | B12: 03_製造業 | C12: 0303_鉄鋼業、非鉄金属製造業 | D12: 中規模事業者 | E12: 0.02094593253 | F12: 0.03340169965 | G12: -0.01637845813 | H12: 0.008539113159 | I12: 0.03488918728 | J12: 0.0700541668
A13: ②営業利益率 | B13: 03_製造業 | C13: 0303_鉄鋼業、非鉄金属製造業 | D13: 小規模事業者 | E13: 0.01384576398 | F13: 0.04728096453 | G13: -0.03212029543 | H13: 0.001846090097 | I13: 0.02795685277 | J13: 0.07462332329
A14: ②営業利益率 | B14: 03_製造業 | C14: 0304_金属製品製造業 | D14: 中規模事業者 | E14: 0.02898188083 | F14: 0.04081206664 | G14: -0.01951113854 | H14: 0.0130914761 | I14: 0.04772544735 | J14: 0.09388400865
A15: ②営業利益率 | B15: 03_製造業 | C15: 0304_金属製品製造業 | D15: 小規模事業者 | E15: 0.02231110453 | F15: 0.05070622036 | G15: -0.03840405444 | H15: 0.006577654655 | I15: 0.04466494113 | J15: 0.08928898458
A16: ②営業利益率 | B16: 03_製造業 | C16: 0305_一般・電気機械器具製造業 | D16: 中規模事業者 | E16: 0.03431133556 | F16: 0.04111452092 | G16: -0.0121256163 | H16: 0.01779709411 | I16: 0.05424363799 | J16: 0.09773807247
A17: ②営業利益率 | B17: 03_製造業 | C17: 0305_一般・電気機械器具製造業 | D17: 小規模事業者 | E17: 0.02782839397 | F17: 0.05505667133 | G17: -0.05007227075 | H17: 0.008597938794 | I17: 0.04818938454 | J17: 0.09762397069
A18: ②営業利益率 | B18: 不使用 | C18: 不使用 | D18: 中規模事業者
A19: ②営業利益率 | B19: 不使用 | C19: 不使用 | D19: 小規模事業者
A20: ②営業利益率 | B20: 04_卸売業 | C20: 0404_その他の卸売業 | D20: 中規模事業者 | E20: 0.01309172693 | F20: 0.0265282058 | G20: -0.0121572156 | H20: 0.005943853753 | I20: 0.0224858189 | J20: 0.04899239979
A21: ②営業利益率 | B21: 04_卸売業 | C21: 0404_その他の卸売業 | D21: 小規模事業者 | E21: 0.007914704223 | F21: 0.0355521302 | G21: -0.03899412127 | H21: 0.001033502247 | I21: 0.01699733654 | J21: 0.04292613753
A22: ②営業利益率 | B22: 04_卸売業 | C22: 0401_化学製品卸売業 | D22: 中規模事業者 | E22: 0.01390598459 | F22: 0.02569712137 | G22: -0.006577949701 | H22: 0.007201707975 | I22: 0.02147734661 | J22: 0.05097281725
A23: ②営業利益率 | B23: 04_卸売業 | C23: 0401_化学製品卸売業 | D23: 小規模事業者 | E23: 0.007122835233 | F23: 0.03411917985 | G23: -0.03788131399 | H23: -5.373677566e-05 | I23: 0.01513601421 | J23: 0.03597684709
A24: ②営業利益率 | B24: 04_卸売業 | C24: 0402_繊維関連製品卸売業 | D24: 中規模事業者 | E24: 0.01391340185 | F24: 0.03028900011 | G24: -0.02214943001 | H24: 0.00595116772 | I24: 0.0256893726 | J24: 0.05438180345
A25: ②営業利益率 | B25: 04_卸売業 | C25: 0402_繊維関連製品卸売業 | D25: 小規模事業者 | E25: 0.007655033771 | F25: 0.03844985023 | G25: -0.05407229991 | H25: -0.002062870343 | I25: 0.01797380475 | J25: 0.04533850764
A26: ②営業利益率 | B26: 04_卸売業 | C26: 0403_食料品卸売業 | D26: 中規模事業者 | E26: 0.006569213273 | F26: 0.02073849333 | G26: -0.01420155495 | H26: 0.002310401567 | I26: 0.01270255475 | J26: 0.03136808952
A27: ②営業利益率 | B27: 04_卸売業 | C27: 0403_食料品卸売業 | D27: 小規模事業者 | E27: 0.006642977319 | F27: 0.03203779719 | G27: -0.03884888055 | H27: 0.0004732271995 | I27: 0.01330635979 | J27: 0.03238936636
A28: ②営業利益率 | B28: 不使用 | C28: 不使用 | D28: 中規模事業者
A29: ②営業利益率 | B29: 不使用 | C29: 不使用 | D29: 小規模事業者
A30: ②営業利益率 | B30: 05_小売業 | C30: 0501_小売業 | D30: 中規模事業者 | E30: 0.01216288276 | F30: 0.02953293545 | G30: -0.01725452357 | H30: 0.004042683261 | I30: 0.02339960734 | J30: 0.05516090842
A31: ②営業利益率 | B31: 05_小売業 | C31: 0501_小売業 | D31: 小規模事業者 | E31: 0.004487342074 | F31: 0.04257685602 | G31: -0.06166598655 | H31: -0.007493100097 | I31: 0.01536808013 | J31: 0.04408470748
A32: ②営業利益率 | B32: 06_飲食業 | C32: 0601_飲食業 | D32: 中規模事業者 | E32: 0.01963132269 | F32: 0.03133725613 | G32: -0.0141826058 | H32: 0.008086861197 | I32: 0.03210218863 | J32: 0.06648767076
A33: ②営業利益率 | B33: 06_飲食業 | C33: 0601_飲食業 | D33: 小規模事業者 | E33: 0.01045586992 | F33: 0.05803096033 | G33: -0.06995975147 | H33: -0.007442007707 | I33: 0.02512725767 | J33: 0.06106604247
A34: ②営業利益率 | B34: 07_不動産業 | C34: 0701_不動産業 | D34: 中規模事業者 | E34: 0.04801462952 | F34: 0.03974086713 | G34: 0.008739366322 | H34: 0.03104779167 | I34: 0.06875902952 | J34: 0.1134017789
A35: ②営業利益率 | B35: 07_不動産業 | C35: 0701_不動産業 | D35: 小規模事業者 | E35: 0.03930555298 | F35: 0.05000409753 | G35: -0.0116513806 | H35: 0.02278450503 | I35: 0.06058481171 | J35: 0.1143804008
A36: ②営業利益率 | B36: 08_運輸業 | C36: 0801_運輸業 | D36: 中規模事業者 | E36: 0.01792657769 | F36: 0.02948957601 | G36: -0.01325528804 | H36: 0.008761539006 | I36: 0.03201563257 | J36: 0.06221923331
A37: ②営業利益率 | B37: 08_運輸業 | C37: 0801_運輸業 | D37: 小規模事業者 | E37: 0.008987164112 | F37: 0.03956320572 | G37: -0.04615709609 | H37: -0.001431445823 | I37: 0.02557393712 | J37: 0.05652095919
A38: ②営業利益率 | B38: 09_エネルギー | C38: 0901_エネルギー | D38: 中規模事業者 | E38: 0.04068808532 | F38: 0.04366824947 | G38: 0.00399343067 | H38: 0.0263036609 | I38: 0.05813321227 | J38: 0.121044351
A39: ②営業利益率 | B39: 09_エネルギー | C39: 0901_エネルギー | D39: 小規模事業者 | E39: 0.02834713119 | F39: 0.09151703136 | G39: -0.1480794799 | H39: 0.002539988692 | I39: 0.04497312777 | J39: 0.1202749802
A40: ②営業利益率 | B40: 10_サービス業 | C40: 1006_その他のサービス業 | D40: 中規模事業者 | E40: 0.02489630886 | F40: 0.03805989129 | G40: -0.0145379073 | H40: 0.01229093056 | I40: 0.04346690602 | J40: 0.08658219458
A41: ②営業利益率 | B41: 10_サービス業 | C41: 1006_その他のサービス業 | D41: 小規模事業者 | E41: 0.01410053424 | F41: 0.0539485366 | G41: -0.06251670099 | H41: -0.001459412709 | I41: 0.03281446504 | J41: 0.087366522
A42: ②営業利益率 | B42: 10_サービス業 | C42: 1001_物品賃貸業 | D42: 中規模事業者 | E42: 0.03451113372 | F42: 0.03911777497 | G42: -0.01024575038 | H42: 0.01872656337 | I42: 0.0549608301 | J42: 0.09812374661
A43: ②営業利益率 | B43: 10_サービス業 | C43: 1001_物品賃貸業 | D43: 小規模事業者 | E43: 0.01569534309 | F43: 0.04773407823 | G43: -0.04107300675 | H43: 0.003225974897 | I43: 0.03153892889 | J43: 0.09195980833
A44: ②営業利益率 | B44: 10_サービス業 | C44: 1002_娯楽業 | D44: 中規模事業者 | E44: 0.01870617523 | F44: 0.03973756262 | G44: -0.03328531384 | H44: 0.007240919744 | I44: 0.03286906535 | J44: 0.07497480307
A45: ②営業利益率 | B45: 10_サービス業 | C45: 1002_娯楽業 | D45: 小規模事業者 | E45: 0.00706586126 | F45: 0.05042670505 | G45: -0.07383803456 | H45: -0.007984214168 | I45: 0.02142280924 | J45: 0.06913325686
A46: ②営業利益率 | B46: 10_サービス業 | C46: 1003_広告・調査・情報サービス業 | D46: 中規模事業者 | E46: 0.02273506272 | F46: 0.03401378745 | G46: -0.01080590724 | H46: 0.01156171527 | I46: 0.03972260375 | J46: 0.07858797634
A47: ②営業利益率 | B47: 10_サービス業 | C47: 1003_広告・調査・情報サービス業 | D47: 小規模事業者 | E47: 0.01477876397 | F47: 0.05259768844 | G47: -0.06155334527 | H47: -0.002311784247 | I47: 0.03744461263 | J47: 0.08906855158
A48: ②営業利益率 | B48: 10_サービス業 | C48: 1004_事業サービス業 | D48: 中規模事業者 | E48: 0.02269792748 | F48: 0.03561510813 | G48: -0.010932424 | H48: 0.01105310358 | I48: 0.03722579445 | J48: 0.07711056665
A49: ②営業利益率 | B49: 10_サービス業 | C49: 1004_事業サービス業 | D49: 小規模事業者 | E49: 0.01502645298 | F49: 0.04884710577 | G49: -0.04940225506 | H49: 0.002985337665 | I49: 0.03167811231 | J49: 0.08368975955
A50: ②営業利益率 | B50: 10_サービス業 | C50: 1005_専門サービス業 | D50: 中規模事業者 | E50: 0.03705945352 | F50: 0.04011107732 | G50: -0.01025683059 | H50: 0.01894035136 | I50: 0.05802576167 | J50: 0.09778644904
A51: ②営業利益率 | B51: 10_サービス業 | C51: 1005_専門サービス業 | D51: 小規模事業者 | E51: 0.01619098806 | F51: 0.06128215157 | G51: -0.07487571325 | H51: -0.0020872375 | I51: 0.03791532929 | J51: 0.09909359967
A52: ②営業利益率 | B52: 不使用 | C52: 不使用 | D52: 中規模事業者
A53: ②営業利益率 | B53: 不使用 | C53: 不使用 | D53: 小規模事業者
A54: ②営業利益率 | B54: 11_医療業 | C54: 1101_医療業 | D54: 中規模事業者 | E54: 0.01884238421 | F54: 0.04100552641 | G54: -0.02811074894 | H54: 0.006455654771 | I54: 0.0409135336 | J54: 0.08493517651
A55: ②営業利益率 | B55: 11_医療業 | C55: 1101_医療業 | D55: 小規模事業者 | E55: -0.0331804945 | F55: 0.07705357843 | G55: -0.1401918785 | H55: -0.05145198251 | I55: 0.001714505119 | J55: 0.07135931144
A56: ②営業利益率 | B56: 12_保険衛生、廃棄物処理業 | C56: 1201_保険衛生、廃棄物処理業 | D56: 中規模事業者 | E56: 0.03156760735 | F56: 0.04341289576 | G56: -0.01679711235 | H56: 0.01503057231 | I56: 0.05258892572 | J56: 0.1054263783
A57: ②営業利益率 | B57: 12_保険衛生、廃棄物処理業 | C57: 1201_保険衛生、廃棄物処理業 | D57: 小規模事業者 | E57: 0.01925336689 | F57: 0.05111181397 | G57: -0.06481891147 | H57: -0.001653972007 | I57: 0.0506847196 | J57: 0.09690151961
A58: ②営業利益率 | B58: 13_観光業 | C58: 1301_観光業 | D58: 中規模事業者 | E58: 0.02727075066 | F58: 0.04523521568 | G58: -0.02547391351 | H58: 0.01106740969 | I58: 0.05360738831 | J58: 0.09765160722
A59: ②営業利益率 | B59: 13_観光業 | C59: 1301_観光業 | D59: 小規模事業者 | E59: 0.01052933694 | F59: 0.03703347303 | G59: -0.02762683315 | H59: 0.004080227109 | I59: 0.03263068478 | J59: 0.07914696152
A60: ②営業利益率 | B60: 14_その他 | C60: 1400_その他業種 | D60: 中規模事業者 | E60: 0.01931600204 | F60: 0.03340111738 | G60: -0.01172422833 | H60: 0.009152754153 | I60: 0.03396337614 | J60: 0.07283010518
A61: ②営業利益率 | B61: 14_その他 | C61: 1400_その他業種 | D61: 小規模事業者 | E61: 0.01556511569 | F61: 0.04571725556 | G61: -0.04580893998 | H61: 0.003611572895 | I61: 0.03213830544 | J61: 0.07285874703

Sheet 【参照】労働生産性基準値
A1: 指標カテゴリ | B1: 大分類 | C1: 小分類 | D1: 事業規模 | E1: 中央値 | F1: 標準偏差 | G1: ⅳ | H1: ⅲ | I1: ⅱ | J1: ⅰ
A2: ③労働生産性（千円） | B2: 01_農業 | C2: 0101_農業 | D2: 中規模事業者 | E2: 561.1938539 | F2: 2593.431357 | G2: -542.3015873 | H2: 268.0666667 | I2: 1716.700119 | J2: 6398.345143
A3: ③労働生産性（千円） | B3: 01_農業 | C3: 0101_農業 | D3: 小規模事業者 | E3: 306 | F3: 2804.923656 | G3: -2324.333333 | H3: -440.537037 | I3: 1208.980392 | J3: 3761.714286
A4: ③労働生産性（千円） | B4: 02_建設業 | C4: 0201_建設業 | D4: 中規模事業者 | E4: 1163.319025 | F4: 1921.112112 | G4: -91.86914414 | H4: 568.3015691 | I4: 2019.961353 | J4: 4345.568637
A5: ③労働生産性（千円） | B5: 02_建設業 | C5: 0201_建設業 | D5: 小規模事業者 | E5: 603.8888889 | F5: 2197.344582 | G5: -895.9 | H5: 169.6190476 | I5: 1315.578947 | J5: 3687.833333
A6: ③労働生産性（千円） | B6: 03_製造業 | C6: 0306_その他の製造業 | D6: 中規模事業者 | E6: 702.2566667 | F6: 1608.219495 | G6: -387.470032 | H6: 299.0909091 | I6: 1329.683182 | J6: 3216.101164
A7: ③労働生産性（千円） | B7: 03_製造業 | C7: 0306_その他の製造業 | D7: 小規模事業者 | E7: 590.2666667 | F7: 2183.580371 | G7: -1105.266667 | H7: 143.625 | I7: 1226.466667 | J7: 3411.878788
A8: ③労働生産性（千円） | B8: 03_製造業 | C8: 0301_食料品・飼料・飲料製造業 | D8: 中規模事業者 | E8: 629.2308787 | F8: 1646.214903 | G8: -470.6134615 | H8: 261.3391733 | I8: 1230.073447 | J8: 3238.169546
A9: ③労働生産性（千円） | B9: 03_製造業 | C9: 0301_食料品・飼料・飲料製造業 | D9: 小規模事業者 | E9: 595.1866097 | F9: 2412.686237 | G9: -1320.654762 | H9: 35.44444444 | I9: 1253.666667 | J9: 3831.866667
A10: ③労働生産性（千円） | B10: 03_製造業 | C10: 0302_化学工業・関連製品製造業 | D10: 中規模事業者 | E10: 1183.72706 | F10: 2179.035623 | G10: -394.8527561 | H10: 561.1574074 | I10: 2091.295238 | J10: 4588.173472
A11: ③労働生産性（千円） | B11: 03_製造業 | C11: 0302_化学工業・関連製品製造業 | D11: 小規模事業者 | E11: 774.6388889 | F11: 3185.981415 | G11: -1096.866667 | H11: 323.7 | I11: 1364.533333 | J11: 5442.45
A12: ③労働生産性（千円） | B12: 03_製造業 | C12: 0303_鉄鋼業、非鉄金属製造業 | D12: 中規模事業者 | E12: 770.8012505 | F12: 1790.997363 | G12: -464.6041667 | H12: 313.0910774 | I12: 1450.266865 | J12: 3496.696774
A13: ③労働生産性（千円） | B13: 03_製造業 | C13: 0303_鉄鋼業、非鉄金属製造業 | D13: 小規模事業者 | E13: 489.9722222 | F13: 2668.791963 | G13: -1085.037037 | H13: 74.7202381 | I13: 1221.828042 | J13: 3862.277778
A14: ③労働生産性（千円） | B14: 03_製造業 | C14: 0304_金属製品製造業 | D14: 中規模事業者 | E14: 669.7824948 | F14: 1453.124837 | G14: -364.3947368 | H14: 276.8492063 | I14: 1264.697807 | J14: 2999.111928
A15: ③労働生産性（千円） | B15: 03_製造業 | C15: 0304_金属製品製造業 | D15: 小規模事業者 | E15: 551.8944444 | F15: 1926.91988 | G15: -717.6742725 | H15: 181.5555556 | I15: 1177.583333 | J15: 3005.138889
A16: ③労働生産性（千円） | B16: 03_製造業 | C16: 0305_一般・電気機械器具製造業 | D16: 中規模事業者 | E16: 837.7361778 | F16: 1674.321365 | G16: -264.5989247 | H16: 391.2575758 | I16: 1508.700771 | J16: 3438.714198
A17: ③労働生産性（千円） | B17: 03_製造業 | C17: 0305_一般・電気機械器具製造業 | D17: 小規模事業者 | E17: 751.8722222 | F17: 2157.007908 | G17: -1118.346154 | H17: 238.2333333 | I17: 1412.883333 | J17: 3666.074074
A18: ③労働生産性（千円） | B18: 不使用 | C18: 不使用 | D18: 中規模事業者
A19: ③労働生産性（千円） | B19: 不使用 | C19: 不使用 | D19: 小規模事業者
A20: ③労働生産性（千円） | B20: 04_卸売業 | C20: 0404_その他の卸売業 | D20: 中規模事業者 | E20: 902.0227796 | F20: 1997.27447 | G20: -401.9718137 | H20: 409.6 | I20: 1636.512868 | J20: 4076.053571
A21: ③労働生産性（千円） | B21: 04_卸売業 | C21: 0404_その他の卸売業 | D21: 小規模事業者 | E21: 837.7 | F21: 3178.607942 | G21: -1549.944444 | H21: 190.9222222 | I21: 1916 | J21: 5803
A22: ③労働生産性（千円） | B22: 04_卸売業 | C22: 0401_化学製品卸売業 | D22: 中規模事業者 | E22: 1154.53876 | F22: 2248.385358 | G22: -314.1587302 | H22: 519.7058081 | I22: 1947.591947 | J22: 5009.009524
A23: ③労働生産性（千円） | B23: 04_卸売業 | C23: 0401_化学製品卸売業 | D23: 小規模事業者 | E23: 898.5 | F23: 3568.237278 | G23: -1686.916667 | H23: 77.66666667 | I23: 2114.25 | J23: 5969.833333
A24: ③労働生産性（千円） | B24: 04_卸売業 | C24: 0402_繊維関連製品卸売業 | D24: 中規模事業者 | E24: 925.9342815 | F24: 2125.911636 | G24: -630.2222222 | H24: 348.4324074 | I24: 1720.833333 | J24: 4622.916667
A25: ③労働生産性（千円） | B25: 04_卸売業 | C25: 0402_繊維関連製品卸売業 | D25: 小規模事業者 | E25: 634.6666667 | F25: 2786.960777 | G25: -1779 | H25: 100.5 | I25: 1857.911111 | J25: 5183.666667
A26: ③労働生産性（千円） | B26: 04_卸売業 | C26: 0403_食料品卸売業 | D26: 中規模事業者 | E26: 625.5363527 | F26: 1866.303453 | G26: -635.8272727 | H26: 237.3030303 | I26: 1218.535388 | J26: 3309.982736
A27: ③労働生産性（千円） | B27: 04_卸売業 | C27: 0403_食料品卸売業 | D27: 小規模事業者 | E27: 887.2333333 | F27: 3262.780167 | G27: -1485.555556 | H27: 210 | I27: 2117.883333 | J27: 6483.5
A28: ③労働生産性（千円） | B28: 不使用 | C28: 不使用 | D28: 中規模事業者
A29: ③労働生産性（千円） | B29: 不使用 | C29: 不使用 | D29: 小規模事業者
A30: ③労働生産性（千円） | B30: 05_小売業 | C30: 0501_小売業 | D30: 中規模事業者 | E30: 526.8757263 | F30: 1627.190715 | G30: -519.2857143 | H30: 181.0696413 | I30: 1095.305354 | J30: 2856.52381
A31: ③労働生産性（千円） | B31: 05_小売業 | C31: 0501_小売業 | D31: 小規模事業者 | E31: 321.1666667 | F31: 2538.613679 | G31: -2017.333333 | H31: -247 | I31: 1047 | J31: 3690
A32: ③労働生産性（千円） | B32: 06_飲食業 | C32: 0601_飲食業 | D32: 中規模事業者 | E32: 528.3238095 | F32: 1164.606928 | G32: -336.3582565 | H32: 202.7344928 | I32: 920.525 | J32: 2284.402083
A33: ③労働生産性（千円） | B33: 06_飲食業 | C33: 0601_飲食業 | D33: 小規模事業者 | E33: 460.5333333 | F33: 2923.766096 | G33: -3040.166667 | H33: -109 | I33: 1631.666667 | J33: 3773
A34: ③労働生産性（千円） | B34: 07_不動産業 | C34: 0701_不動産業 | D34: 中規模事業者 | E34: 2208.045833 | F34: 3041.274586 | G34: 205.2997669 | H34: 1189.038462 | I34: 3949.581481 | J34: 8253.041318
A35: ③労働生産性（千円） | B35: 07_不動産業 | C35: 0701_不動産業 | D35: 小規模事業者 | E35: 3033 | F35: 4927.54814 | G35: -175.8235294 | H35: 1411.833333 | I35: 5827.555556 | J35: 12632.11111
A36: ③労働生産性（千円） | B36: 08_運輸業 | C36: 0801_運輸業 | D36: 中規模事業者 | E36: 290.1490351 | F36: 949.4577664 | G36: -186.4938272 | H36: 120.5786795 | I36: 524.7901235 | J36: 1274.751634
A37: ③労働生産性（千円） | B37: 08_運輸業 | C37: 0801_運輸業 | D37: 小規模事業者 | E37: 200.4981481 | F37: 1596.050721 | G37: -634.5343915 | H37: -4.6 | I37: 597.7222222 | J37: 1661.622222
A38: ③労働生産性（千円） | B38: 09_エネルギー | C38: 0901_エネルギー | D38: 中規模事業者 | E38: 3107.615002 | F38: 2990.773008 | G38: 407.3451247 | H38: 2090.625 | I38: 5482.179051 | J38: 8744.275997
A39: ③労働生産性（千円） | B39: 09_エネルギー | C39: 0901_エネルギー | D39: 小規模事業者 | E39: 2148.185714 | F39: 2699.311821 | G39: -4110.433333 | H39: 1349.400219 | I39: 3299.777778 | J39: 4493.666667
A40: ③労働生産性（千円） | B40: 10_サービス業 | C40: 1006_その他のサービス業 | D40: 中規模事業者 | E40: 487.1166667 | F40: 1660.675717 | G40: -257.4082126 | H40: 197.3333333 | I40: 971.7764103 | J40: 2945.683628
A41: ③労働生産性（千円） | B41: 10_サービス業 | C41: 1006_その他のサービス業 | D41: 小規模事業者 | E41: 483.5 | F41: 2751.217953 | G41: -1484.444444 | H41: 54.33333333 | I41: 1274.277778 | J41: 4373.933333
A42: ③労働生産性（千円） | B42: 10_サービス業 | C42: 1001_物品賃貸業 | D42: 中規模事業者 | E42: 1131.519391 | F42: 2299.11091 | G42: -154.6923077 | H42: 529.1528716 | I42: 2171.941962 | J42: 5377.444444
A43: ③労働生産性（千円） | B43: 10_サービス業 | C43: 1001_物品賃貸業 | D43: 小規模事業者 | E43: 858.4722222 | F43: 3070.739356 | G43: -1403.25 | H43: 232.6666667 | I43: 2270.833333 | J43: 5585.5
A44: ③労働生産性（千円） | B44: 10_サービス業 | C44: 1002_娯楽業 | D44: 中規模事業者 | E44: 738.3432099 | F44: 2493.185131 | G44: -751.9289855 | H44: 186.44 | I44: 1648.008665 | J44: 5237.093827
A45: ③労働生産性（千円） | B45: 10_サービス業 | C45: 1002_娯楽業 | D45: 小規模事業者 | E45: 872.6666667 | F45: 2601.024082 | G45: -1170.6 | H45: -72.22222222 | I45: 2079.033333 | J45: 4866.633333
A46: ③労働生産性（千円） | B46: 10_サービス業 | C46: 1003_広告・調査・情報サービス業 | D46: 中規模事業者 | E46: 354.6891667 | F46: 1152.466815 | G46: -218.35 | H46: 141.7212121 | I46: 667.315873 | J46: 1735.318452
A47: ③労働生産性（千円） | B47: 10_サービス業 | C47: 1003_広告・調査・情報サービス業 | D47: 小規模事業者 | E47: 486.625 | F47: 2626.964209 | G47: -1516.5 | H47: 60.2 | I47: 1134.444444 | J47: 4133
A48: ③労働生産性（千円） | B48: 10_サービス業 | C48: 1004_事業サービス業 | D48: 中規模事業者 | E48: 457.3841729 | F48: 1408.192487 | G48: -180.5939394 | H48: 190.1060606 | I48: 881.3488889 | J48: 2539.810484
A49: ③労働生産性（千円） | B49: 10_サービス業 | C49: 1004_事業サービス業 | D49: 小規模事業者 | E49: 605.0833333 | F49: 2891.007611 | G49: -1539.5 | H49: 161 | I49: 1444.611111 | J49: 4690.5
A50: ③労働生産性（千円） | B50: 10_サービス業 | C50: 1005_専門サービス業 | D50: 中規模事業者 | E50: 624.7777778 | F50: 1542.845634 | G50: -203.6277778 | H50: 305.171131 | I50: 1136.667117 | J50: 3010
A51: ③労働生産性（千円） | B51: 10_サービス業 | C51: 1005_専門サービス業 | D51: 小規模事業者 | E51: 440.8 | F51: 2538.288566 | G51: -1284.777778 | H51: 28 | I51: 1153.666667 | J51: 3968.416667
A52: ③労働生産性（千円） | B52: 不使用 | C52: 不使用 | D52: 中規模事業者
A53: ③労働生産性（千円） | B53: 不使用 | C53: 不使用 | D53: 小規模事業者
A54: ③労働生産性（千円） | B54: 11_医療業 | C54: 1101_医療業 | D54: 中規模事業者 | E54: 193.1416231 | F54: 903.8737705 | G54: -449.7380833 | H54: 50.61019032 | I54: 432.475 | J54: 1158.133333
A55: ③労働生産性（千円） | B55: 11_医療業 | C55: 1101_医療業 | D55: 小規模事業者 | E55: -3.991666667 | F55: 4137.579589 | G55: -1313.25 | H55: -525 | I55: 310.6666667 | J55: 11377.6
A56: ③労働生産性（千円） | B56: 12_保険衛生、廃棄物処理業 | C56: 1201_保険衛生、廃棄物処理業 | D56: 中規模事業者 | E56: 712.8946347 | F56: 1872.50438 | G56: -216.9361702 | H56: 331.7428706 | I56: 1378.32 | J56: 4139.956773
A57: ③労働生産性（千円） | B57: 12_保険衛生、廃棄物処理業 | C57: 1201_保険衛生、廃棄物処理業 | D57: 小規模事業者 | E57: 847.1666667 | F57: 2903.887022 | G57: -1793.933333 | H57: -78.41666667 | I57: 2144.722222 | J57: 4808.352381
A58: ③労働生産性（千円） | B58: 13_観光業 | C58: 1301_観光業 | D58: 中規模事業者 | E58: 647.6227102 | F58: 2141.506658 | G58: -732.2191142 | H58: 239.2083081 | I58: 1455.269705 | J58: 3617.221415
A59: ③労働生産性（千円） | B59: 13_観光業 | C59: 1301_観光業 | D59: 小規模事業者 | E59: 587.3333333 | F59: 1673.720357 | G59: -656.1333333 | H59: 243.1166667 | I59: 1112.533333 | J59: 3594.3
A60: ③労働生産性（千円） | B60: 14_その他 | C60: 1400_その他業種 | D60: 中規模事業者 | E60: 773.6277778 | F60: 1905.792561 | G60: -285.5713446 | H60: 328.8833333 | I60: 1495.195466 | J60: 3861.82716
A61: ③労働生産性（千円） | B61: 14_その他 | C61: 1400_その他業種 | D61: 小規模事業者 | E61: 629.6369048 | F61: 2550.871166 | G61: -1013.648148 | H61: 166.4486111 | I61: 1410.185185 | J61: 4244.066667
A64: ※労働生産性＝営業利益/従業員数

Sheet 【参照】EBITDA基準値
A1: 指標カテゴリ | B1: 大分類 | C1: 小分類 | D1: 事業規模 | E1: 中央値 | F1: 標準偏差 | G1: ⅳ | H1: ⅲ | I1: ⅱ | J1: ⅰ
A2: ④ＥＢＴＤＡ有利子負債倍率 | B2: 01_農業 | C2: 0101_農業 | D2: 中規模事業者 | E2: 6.613942429 | F2: 14.56826026 | G2: 24.07046439 | H2: 9.733860552 | I2: 3.397805955 | J2: 0.4489576374
A3: ④ＥＢＴＤＡ有利子負債倍率 | B3: 01_農業 | C3: 0101_農業 | D3: 小規模事業者 | E3: 8.208623519 | F3: 33.23632605 | G3: 48.04245283 | H3: 12.22460565 | I3: 5.123440779 | J3: 1.250928218
A4: ④ＥＢＴＤＡ有利子負債倍率 | B4: 02_建設業 | C4: 0201_建設業 | D4: 中規模事業者 | E4: 5.090431093 | F4: 18.03835028 | G4: 24.09176879 | H4: 8.950740441 | I4: 2.614359802 | J4: 0.5488422259
A5: ④ＥＢＴＤＡ有利子負債倍率 | B5: 02_建設業 | C5: 0201_建設業 | D5: 小規模事業者 | E5: 6.229095351 | F5: 24.44708352 | G5: 32.26554622 | H5: 11.56171674 | I5: 3.123644252 | J5: 0.6470060845
A6: ④ＥＢＴＤＡ有利子負債倍率 | B6: 03_製造業 | C6: 0306_その他の製造業 | D6: 中規模事業者 | E6: 8.867593194 | F6: 23.95219148 | G6: 40.92490255 | H6: 16.24570687 | I6: 4.730125849 | J6: 0.9207204922
A7: ④ＥＢＴＤＡ有利子負債倍率 | B7: 03_製造業 | C7: 0306_その他の製造業 | D7: 小規模事業者 | E7: 8.751917425 | F7: 27.7278982 | G7: 40.98234052 | H7: 15.81672409 | I7: 4.657887203 | J7: 0.9916231259
A8: ④ＥＢＴＤＡ有利子負債倍率 | B8: 03_製造業 | C8: 0301_食料品・飼料・飲料製造業 | D8: 中規模事業者 | E8: 10.68207289 | F8: 25.25024352 | G8: 45.045326 | H8: 19.90772492 | I8: 5.690134151 | J8: 1.281554871
A9: ④ＥＢＴＤＡ有利子負債倍率 | B9: 03_製造業 | C9: 0301_食料品・飼料・飲料製造業 | D9: 小規模事業者 | E9: 11.41050947 | F9: 28.12957073 | G9: 49.76885698 | H9: 20.73331018 | I9: 6.275618375 | J9: 1.376481906
A10: ④ＥＢＴＤＡ有利子負債倍率 | B10: 03_製造業 | C10: 0302_化学工業・関連製品製造業 | D10: 中規模事業者 | E10: 6.914721356 | F10: 15.90987076 | G10: 33.46179915 | H10: 14.39530827 | I10: 3.57729215 | J10: 0.5620188848
A11: ④ＥＢＴＤＡ有利子負債倍率 | B11: 03_製造業 | C11: 0302_化学工業・関連製品製造業 | D11: 小規模事業者 | E11: 8.757024287 | F11: 23.51609147 | G11: 27.28949616 | H11: 12.79019288 | I11: 3.916335125 | J11: 0.8355863881
A12: ④ＥＢＴＤＡ有利子負債倍率 | B12: 03_製造業 | C12: 0303_鉄鋼業、非鉄金属製造業 | D12: 中規模事業者 | E12: 10.99424991 | F12: 27.98209352 | G12: 46.75722865 | H12: 17.68544647 | I12: 5.232372008 | J12: 0.9062897848
A13: ④ＥＢＴＤＡ有利子負債倍率 | B13: 03_製造業 | C13: 0303_鉄鋼業、非鉄金属製造業 | D13: 小規模事業者 | E13: 12.09789366 | F13: 27.49665467 | G13: 57.83028798 | H13: 17.97571429 | I13: 5.485394668 | J13: 1.288693361
A14: ④ＥＢＴＤＡ有利子負債倍率 | B14: 03_製造業 | C14: 0304_金属製品製造業 | D14: 中規模事業者 | E14: 8.107592782 | F14: 26.75498576 | G14: 42.214127 | H14: 15.27466449 | I14: 4.180136485 | J14: 0.9201968024
A15: ④ＥＢＴＤＡ有利子負債倍率 | B15: 03_製造業 | C15: 0304_金属製品製造業 | D15: 小規模事業者 | E15: 7.336501579 | F15: 27.23940422 | G15: 38.76752205 | H15: 13.47198889 | I15: 3.994051485 | J15: 1.017366551
A16: ④ＥＢＴＤＡ有利子負債倍率 | B16: 03_製造業 | C16: 0305_一般・電気機械器具製造業 | D16: 中規模事業者 | E16: 7.513927056 | F16: 21.85240267 | G16: 35.47675046 | H16: 13.80838309 | I16: 4.209777163 | J16: 0.8287138609
A17: ④ＥＢＴＤＡ有利子負債倍率 | B17: 03_製造業 | C17: 0305_一般・電気機械器具製造業 | D17: 小規模事業者 | E17: 7.710025538 | F17: 28.03946953 | G17: 36.48768977 | H17: 13.94150883 | I17: 3.813500412 | J17: 0.7457776667
A18: ④ＥＢＴＤＡ有利子負債倍率 | B18: 不使用 | C18: 不使用 | D18: 中規模事業者
A19: ④ＥＢＴＤＡ有利子負債倍率 | B19: 不使用 | C19: 不使用 | D19: 小規模事業者
A20: ④ＥＢＴＤＡ有利子負債倍率 | B20: 04_卸売業 | C20: 0404_その他の卸売業 | D20: 中規模事業者 | E20: 7.977472847 | F20: 21.34834944 | G20: 32.40191892 | H20: 13.76725891 | I20: 4.306607398 | J20: 0.8907017617
A21: ④ＥＢＴＤＡ有利子負債倍率 | B21: 04_卸売業 | C21: 0404_その他の卸売業 | D21: 小規模事業者 | E21: 8.742832996 | F21: 26.23536132 | G21: 38.9198681 | H21: 15.0950949 | I21: 4.348277879 | J21: 0.8144350333
A22: ④ＥＢＴＤＡ有利子負債倍率 | B22: 04_卸売業 | C22: 0401_化学製品卸売業 | D22: 中規模事業者 | E22: 7.180154236 | F22: 25.63356754 | G22: 33.49759021 | H22: 11.7256964 | I22: 3.784944462 | J22: 0.8953078418
A23: ④ＥＢＴＤＡ有利子負債倍率 | B23: 04_卸売業 | C23: 0401_化学製品卸売業 | D23: 小規模事業者 | E23: 9.662521095 | F23: 28.40197516 | G23: 56.80051563 | H23: 17.08315476 | I23: 3.405682194 | J23: 0.7098492576
A24: ④ＥＢＴＤＡ有利子負債倍率 | B24: 04_卸売業 | C24: 0402_繊維関連製品卸売業 | D24: 中規模事業者 | E24: 10.54635297 | F24: 21.17154864 | G24: 40.62912998 | H24: 18.17396392 | I24: 5.383001129 | J24: 1.427168393
A25: ④ＥＢＴＤＡ有利子負債倍率 | B25: 04_卸売業 | C25: 0402_繊維関連製品卸売業 | D25: 小規模事業者 | E25: 9.253006203 | F25: 28.23994109 | G25: 38.9198681 | H25: 16.86551866 | I25: 5.036874917 | J25: 1.5535188
A26: ④ＥＢＴＤＡ有利子負債倍率 | B26: 04_卸売業 | C26: 0403_食料品卸売業 | D26: 中規模事業者 | E26: 10.07095164 | F26: 23.65682125 | G26: 35.19092429 | H26: 16.52107442 | I26: 5.922751352 | J26: 1.018483428
A27: ④ＥＢＴＤＡ有利子負債倍率 | B27: 04_卸売業 | C27: 0403_食料品卸売業 | D27: 小規模事業者 | E27: 9.231591288 | F27: 24.64734331 | G27: 36.84332456 | H27: 14.9155576 | I27: 5.041353383 | J27: 1.082956259
A28: ④ＥＢＴＤＡ有利子負債倍率 | B28: 不使用 | C28: 不使用 | D28: 中規模事業者
A29: ④ＥＢＴＤＡ有利子負債倍率 | B29: 不使用 | C29: 不使用 | D29: 小規模事業者
A30: ④ＥＢＴＤＡ有利子負債倍率 | B30: 05_小売業 | C30: 0501_小売業 | D30: 中規模事業者 | E30: 7.884943426 | F30: 18.77713049 | G30: 28.11679035 | H30: 12.93582465 | I30: 4.399274468 | J30: 0.9899137564
A31: ④ＥＢＴＤＡ有利子負債倍率 | B31: 05_小売業 | C31: 0501_小売業 | D31: 小規模事業者 | E31: 9.126302626 | F31: 32.18110476 | G31: 52.18642824 | H31: 16.85711477 | I31: 4.95736755 | J31: 1.085191982
A32: ④ＥＢＴＤＡ有利子負債倍率 | B32: 06_飲食業 | C32: 0601_飲食業 | D32: 中規模事業者 | E32: 4.410316582 | F32: 14.03014787 | G32: 17.58334758 | H32: 6.883979505 | I32: 2.677048124 | J32: 0.7845133012
A33: ④ＥＢＴＤＡ有利子負債倍率 | B33: 06_飲食業 | C33: 0601_飲食業 | D33: 小規模事業者 | E33: 6.838044807 | F33: 18.52364224 | G33: 30.93487463 | H33: 9.544255268 | I33: 2.951728339 | J33: 0.7566037352
A34: ④ＥＢＴＤＡ有利子負債倍率 | B34: 07_不動産業 | C34: 0701_不動産業 | D34: 中規模事業者 | E34: 7.080962492 | F34: 9.063803122 | G34: 19.56458985 | H34: 10.22807142 | I34: 4.100217635 | J34: 0.8942537263
A35: ④ＥＢＴＤＡ有利子負債倍率 | B35: 07_不動産業 | C35: 0701_不動産業 | D35: 小規模事業者 | E35: 10.57462112 | F35: 18.38316868 | G35: 31.78663136 | H35: 15.42518244 | I35: 6.689460878 | J35: 1.952839471
A36: ④ＥＢＴＤＡ有利子負債倍率 | B36: 08_運輸業 | C36: 0801_運輸業 | D36: 中規模事業者 | E36: 7.622404792 | F36: 19.97469269 | G36: 28.28398979 | H36: 12.81353142 | I36: 4.219325511 | J36: 0.8041618527
A37: ④ＥＢＴＤＡ有利子負債倍率 | B37: 08_運輸業 | C37: 0801_運輸業 | D37: 小規模事業者 | E37: 6.006040689 | F37: 30.62811663 | G37: 26.43405276 | H37: 10.40380811 | I37: 2.893233795 | J37: 0.7475754972
A38: ④ＥＢＴＤＡ有利子負債倍率 | B38: 09_エネルギー | C38: 0901_エネルギー | D38: 中規模事業者 | E38: 3.816283557 | F38: 6.376087308 | G38: 19.10639238 | H38: 5.724325497 | I38: 1.965254046 | J38: 0.2085118366
A39: ④ＥＢＴＤＡ有利子負債倍率 | B39: 09_エネルギー | C39: 0901_エネルギー | D39: 小規模事業者 | E39: 8.991243843 | F39: 8.200820691 | G39: 24.64015522 | H39: 17.71143285 | I39: 8.017758095 | J39: 1.267832327
A40: ④ＥＢＴＤＡ有利子負債倍率 | B40: 10_サービス業 | C40: 1006_その他のサービス業 | D40: 中規模事業者 | E40: 5.215710075 | F40: 19.68802908 | G40: 23.3379486 | H40: 9.513593651 | I40: 2.705654781 | J40: 0.6058129971
A41: ④ＥＢＴＤＡ有利子負債倍率 | B41: 10_サービス業 | C41: 1006_その他のサービス業 | D41: 小規模事業者 | E41: 5.67217864 | F41: 28.02155592 | G41: 36.93750388 | H41: 10.81072275 | I41: 2.994242016 | J41: 0.6182222929
A42: ④ＥＢＴＤＡ有利子負債倍率 | B42: 10_サービス業 | C42: 1001_物品賃貸業 | D42: 中規模事業者 | E42: 4.082020636 | F42: 19.149148 | G42: 24.01832334 | H42: 8.239874836 | I42: 2.385430016 | J42: 0.6206294824
A43: ④ＥＢＴＤＡ有利子負債倍率 | B43: 10_サービス業 | C43: 1001_物品賃貸業 | D43: 小規模事業者 | E43: 4.349277978 | F43: 19.60393964 | G43: 18.79344246 | H43: 5.264739305 | I43: 1.943544496 | J43: 0.4235235092
A44: ④ＥＢＴＤＡ有利子負債倍率 | B44: 10_サービス業 | C44: 1002_娯楽業 | D44: 中規模事業者 | E44: 4.409214736 | F44: 17.82579325 | G44: 20.44202754 | H44: 8.002888009 | I44: 2.094168803 | J44: 0.6607480609
A45: ④ＥＢＴＤＡ有利子負債倍率 | B45: 10_サービス業 | C45: 1002_娯楽業 | D45: 小規模事業者 | E45: 5.926912104 | F45: 64.1982696 | G45: 34.69989076 | H45: 11.30536295 | I45: 3.918889002 | J45: 0.7451517921
A46: ④ＥＢＴＤＡ有利子負債倍率 | B46: 10_サービス業 | C46: 1003_広告・調査・情報サービス業 | D46: 中規模事業者 | E46: 5.021937526 | F46: 16.05177799 | G46: 21.54098732 | H46: 9.05816095 | I46: 2.543098675 | J46: 0.5452657455
A47: ④ＥＢＴＤＡ有利子負債倍率 | B47: 10_サービス業 | C47: 1003_広告・調査・情報サービス業 | D47: 小規模事業者 | E47: 4.456649989 | F47: 22.60362876 | G47: 36.55889058 | H47: 8.579739143 | I47: 2.153619674 | J47: 0.2990897269
A48: ④ＥＢＴＤＡ有利子負債倍率 | B48: 10_サービス業 | C48: 1004_事業サービス業 | D48: 中規模事業者 | E48: 5.09352077 | F48: 21.90463996 | G48: 21.99701675 | H48: 9.400300601 | I48: 2.684168109 | J48: 0.5000822377
A49: ④ＥＢＴＤＡ有利子負債倍率 | B49: 10_サービス業 | C49: 1004_事業サービス業 | D49: 小規模事業者 | E49: 6.208205815 | F49: 29.41028114 | G49: 42.63356466 | H49: 10.1630597 | I49: 3.401999571 | J49: 1.062404632
A50: ④ＥＢＴＤＡ有利子負債倍率 | B50: 10_サービス業 | C50: 1005_専門サービス業 | D50: 中規模事業者 | E50: 4.38399943 | F50: 20.59865124 | G50: 22.11457863 | H50: 9.132348836 | I50: 2.167476771 | J50: 0.4718733872
A51: ④ＥＢＴＤＡ有利子負債倍率 | B51: 10_サービス業 | C51: 1005_専門サービス業 | D51: 小規模事業者 | E51: 6.265654061 | F51: 24.21107666 | G51: 33.40682196 | H51: 10.58823529 | I51: 2.985063991 | J51: 0.649696869
A52: ④ＥＢＴＤＡ有利子負債倍率 | B52: 不使用 | C52: 不使用 | D52: 中規模事業者
A53: ④ＥＢＴＤＡ有利子負債倍率 | B53: 不使用 | C53: 不使用 | D53: 小規模事業者
A54: ④ＥＢＴＤＡ有利子負債倍率 | B54: 11_医療業 | C54: 1101_医療業 | D54: 中規模事業者 | E54: 7.930609566 | F54: 27.39430683 | G54: 28.29923185 | H54: 11.4169764 | I54: 4.63218814 | J54: 1.135748325
A55: ④ＥＢＴＤＡ有利子負債倍率 | B55: 11_医療業 | C55: 1101_医療業 | D55: 小規模事業者 | E55: 3.475979068 | F55: 31.84604508 | G55: 94.22881119 | H55: 17.90929708 | I55: 1.832724663 | J55: 0.1434975558
A56: ④ＥＢＴＤＡ有利子負債倍率 | B56: 12_保険衛生、廃棄物処理業 | C56: 1201_保険衛生、廃棄物処理業 | D56: 中規模事業者 | E56: 5.722833787 | F56: 16.32291272 | G56: 23.93093683 | H56: 10.03635728 | I56: 2.970444714 | J56: 0.8619248382
A57: ④ＥＢＴＤＡ有利子負債倍率 | B57: 12_保険衛生、廃棄物処理業 | C57: 1201_保険衛生、廃棄物処理業 | D57: 小規模事業者 | E57: 4.263025303 | F57: 19.08668399 | G57: 36.23504274 | H57: 6.404341428 | I57: 2.472376874 | J57: 0.666123157
A58: ④ＥＢＴＤＡ有利子負債倍率 | B58: 13_観光業 | C58: 1301_観光業 | D58: 中規模事業者 | E58: 6.397593957 | F58: 9.516458106 | G58: 18.21409261 | H58: 9.399502447 | I58: 3.395570981 | J58: 0.8433048433
A59: ④ＥＢＴＤＡ有利子負債倍率 | B59: 13_観光業 | C59: 1301_観光業 | D59: 小規模事業者 | E59: 4.572987454 | F59: 20.20544087 | G59: 47.40328985 | H59: 12.10896079 | I59: 2.995043939 | J59: 0.6990121737
A60: ④ＥＢＴＤＡ有利子負債倍率 | B60: 14_その他 | C60: 1400_その他業種 | D60: 中規模事業者 | E60: 6.590865213 | F60: 19.68918891 | G60: 28.09168943 | H60: 11.51069185 | I60: 3.464828476 | J60: 0.7356294136
A61: ④ＥＢＴＤＡ有利子負債倍率 | B61: 14_その他 | C61: 1400_その他業種 | D61: 小規模事業者 | E61: 6.750869979 | F61: 24.75974517 | G61: 33.25872403 | H61: 12.34802011 | I61: 3.418013245 | J61: 0.7050099264
A64: ※ＥＢＴＤＡ有利子負債倍率＝①（借入金－現金・預金）／②（営業利益＋減価償却費）
A65: ※以下の優先順位に基づき、点数を付与。
A66: 優先①：①式が0以下（借入金＜現金・預金又は借入金＝現金・預金＝0）の場合は、「5点」を付与
A67: 優先②：②式が0以下（営業利益＋減価償却費<=0）の場合は、「1点」を付与
A68: 優先③：①式及び②式が0超の時、本式にて算出された結果に基づき点数を付与

Sheet 【参照】営業運転資本回転期間基準値
A1: 指標カテゴリ | B1: 大分類 | C1: 小分類 | D1: 事業規模 | E1: 中央値 | F1: 標準偏差 | G1: ⅳ | H1: ⅲ | I1: ⅱ | J1: ⅰ
A2: ⑥営業運転資本回転期間 | B2: 01_農業 | C2: 0101_農業 | D2: 中規模事業者 | E2: 1.033344419 | F2: 1.362475963 | G2: 3.331327927 | H2: 1.635024148 | I2: 0.6330363243 | J2: -0.2288387234
A3: ⑥営業運転資本回転期間 | B3: 01_農業 | C3: 0101_農業 | D3: 小規模事業者 | E3: 1.271122255 | F3: 2.776635109 | G3: 7.921590478 | H3: 2.306257687 | I3: 0.7215668401 | J3: 0.0401774228
A4: ⑥営業運転資本回転期間 | B4: 02_建設業 | C4: 0201_建設業 | D4: 中規模事業者 | E4: 1.034499505 | F4: 1.398298983 | G4: 3.409932891 | H4: 1.710999607 | I4: 0.4934310959 | J4: -0.2964758422
A5: ⑥営業運転資本回転期間 | B5: 02_建設業 | C5: 0201_建設業 | D5: 小規模事業者 | E5: 0.7352176262 | F5: 1.391127512 | G5: 3.003245945 | H5: 1.325793 | I5: 0.3475669219 | J5: -0.08373353328
A6: ⑥営業運転資本回転期間 | B6: 03_製造業 | C6: 0306_その他の製造業 | D6: 中規模事業者 | E6: 2.019753316 | F6: 1.585157008 | G6: 4.509931355 | H6: 2.810716864 | I6: 1.312287179 | J6: 0.2198699697
A7: ⑥営業運転資本回転期間 | B7: 03_製造業 | C7: 0306_その他の製造業 | D7: 小規模事業者 | E7: 1.749042889 | F7: 1.757687654 | G7: 4.488740648 | H7: 2.565676971 | I7: 1.118542601 | J7: 0.1550479757
A8: ⑥営業運転資本回転期間 | B8: 03_製造業 | C8: 0301_食料品・飼料・飲料製造業 | D8: 中規模事業者 | E8: 1.575191686 | F8: 1.624214961 | G8: 4.653285617 | H8: 2.403188533 | I8: 1.058027134 | J8: 0.3254739855
A9: ⑥営業運転資本回転期間 | B9: 03_製造業 | C9: 0301_食料品・飼料・飲料製造業 | D9: 小規模事業者 | E9: 1.555561902 | F9: 1.93340787 | G9: 5.165101955 | H9: 2.44713144 | I9: 1.046131346 | J9: 0.2791737952
A10: ⑥営業運転資本回転期間 | B10: 03_製造業 | C10: 0302_化学工業・関連製品製造業 | D10: 中規模事業者 | E10: 2.318231301 | F10: 1.536347453 | G10: 4.73608617 | H10: 3.049657696 | I10: 1.629691365 | J10: 0.5329516857
A11: ⑥営業運転資本回転期間 | B11: 03_製造業 | C11: 0302_化学工業・関連製品製造業 | D11: 小規模事業者 | E11: 1.928607862 | F11: 1.684010595 | G11: 4.429590981 | H11: 2.827119642 | I11: 1.349465695 | J11: 0.4186187867
A12: ⑥営業運転資本回転期間 | B12: 03_製造業 | C12: 0303_鉄鋼業、非鉄金属製造業 | D12: 中規模事業者 | E12: 2.139126253 | F12: 1.536158632 | G12: 4.535458723 | H12: 2.846205763 | I12: 1.421370244 | J12: 0.2607556623
A13: ⑥営業運転資本回転期間 | B13: 03_製造業 | C13: 0303_鉄鋼業、非鉄金属製造業 | D13: 小規模事業者 | E13: 1.813799398 | F13: 1.379656207 | G13: 4.133709786 | H13: 2.478656513 | I13: 1.204093169 | J13: 0.384935258
A14: ⑥営業運転資本回転期間 | B14: 03_製造業 | C14: 0304_金属製品製造業 | D14: 中規模事業者 | E14: 1.862073818 | F14: 1.482090877 | G14: 4.183519363 | H14: 2.595909317 | I14: 1.250783188 | J14: 0.1186525428
A15: ⑥営業運転資本回転期間 | B15: 03_製造業 | C15: 0304_金属製品製造業 | D15: 小規模事業者 | E15: 1.567333717 | F15: 1.491197784 | G15: 3.992310359 | H15: 2.188102036 | I15: 0.9845172759 | J15: 0.07989512201
A16: ⑥営業運転資本回転期間 | B16: 03_製造業 | C16: 0305_一般・電気機械器具製造業 | D16: 中規模事業者 | E16: 2.463116603 | F16: 1.585367243 | G16: 4.825605066 | H16: 3.29286345 | I16: 1.706035617 | J16: 0.4559189247
A17: ⑥営業運転資本回転期間 | B17: 03_製造業 | C17: 0305_一般・電気機械器具製造業 | D17: 小規模事業者 | E17: 2.000696683 | F17: 1.722799753 | G17: 4.71848173 | H17: 2.871197855 | I17: 1.384435161 | J17: 0.2747607197
A18: ⑥営業運転資本回転期間 | B18: 不使用 | C18: 不使用 | D18: 中規模事業者
A19: ⑥営業運転資本回転期間 | B19: 不使用 | C19: 不使用 | D19: 小規模事業者
A20: ⑥営業運転資本回転期間 | B20: 04_卸売業 | C20: 0404_その他の卸売業 | D20: 中規模事業者 | E20: 0.913603477 | F20: 1.437675728 | G20: 3.271837553 | H20: 1.567198578 | I20: 0.3997834679 | J20: -0.4400388691
A21: ⑥営業運転資本回転期間 | B21: 04_卸売業 | C21: 0404_その他の卸売業 | D21: 小規模事業者 | E21: 0.8689423997 | F21: 1.591141506 | G21: 3.402184332 | H21: 1.529611713 | I21: 0.3824009888 | J21: -0.3329297599
A22: ⑥営業運転資本回転期間 | B22: 04_卸売業 | C22: 0401_化学製品卸売業 | D22: 中規模事業者 | E22: 0.6949244028 | F22: 1.273524096 | G22: 2.504924275 | H22: 1.213598562 | I22: 0.2461354567 | J22: -0.6722608054
A23: ⑥営業運転資本回転期間 | B23: 04_卸売業 | C23: 0401_化学製品卸売業 | D23: 小規模事業者 | E23: 0.7730028073 | F23: 1.212873501 | G23: 2.747804702 | H23: 1.287829537 | I23: 0.3448377484 | J23: -0.3545831074
A24: ⑥営業運転資本回転期間 | B24: 04_卸売業 | C24: 0402_繊維関連製品卸売業 | D24: 中規模事業者 | E24: 2.273818482 | F24: 1.749070491 | G24: 4.937694079 | H24: 3.220039843 | I24: 1.424905504 | J24: 0.08759790546
A25: ⑥営業運転資本回転期間 | B25: 04_卸売業 | C25: 0402_繊維関連製品卸売業 | D25: 小規模事業者 | E25: 1.627282345 | F25: 2.334314939 | G25: 6.556303507 | H25: 2.653687534 | I25: 1.063135376 | J25: 0.1484001945
A26: ⑥営業運転資本回転期間 | B26: 04_卸売業 | C26: 0403_食料品卸売業 | D26: 中規模事業者 | E26: 0.6535658876 | F26: 1.185647966 | G26: 2.686942864 | H26: 1.144317507 | I26: 0.3322119011 | J26: -0.1516670926
A27: ⑥営業運転資本回転期間 | B27: 04_卸売業 | C27: 0403_食料品卸売業 | D27: 小規模事業者 | E27: 0.6663671747 | F27: 1.405858274 | G27: 3.243323239 | H27: 1.197995581 | I27: 0.3223943557 | J27: -0.2053413259
A28: ⑥営業運転資本回転期間 | B28: 不使用 | C28: 不使用 | D28: 中規模事業者
A29: ⑥営業運転資本回転期間 | B29: 不使用 | C29: 不使用 | D29: 小規模事業者
A30: ⑥営業運転資本回転期間 | B30: 05_小売業 | C30: 0501_小売業 | D30: 中規模事業者 | E30: 0.6722940099 | F30: 1.228202094 | G30: 2.559510721 | H30: 1.139988289 | I30: 0.2888975953 | J30: -0.4118311171
A31: ⑥営業運転資本回転期間 | B31: 05_小売業 | C31: 0501_小売業 | D31: 小規模事業者 | E31: 0.83227201 | F31: 1.665648558 | G31: 3.611006855 | H31: 1.478753466 | I31: 0.3755184374 | J31: -0.2184729909
A32: ⑥営業運転資本回転期間 | B32: 06_飲食業 | C32: 0601_飲食業 | D32: 中規模事業者 | E32: -0.07393316292 | F32: 0.4717138362 | G32: 0.5332713256 | H32: 0.1130994887 | I32: -0.2049680409 | J32: -0.4435492023
A33: ⑥営業運転資本回転期間 | B33: 06_飲食業 | C33: 0601_飲食業 | D33: 小規模事業者 | E33: -0.1177001989 | F33: 0.619689177 | G33: 1.056520072 | H33: 0.07653476862 | I33: -0.2570468288 | J33: -0.5339294485
A34: ⑥営業運転資本回転期間 | B34: 07_不動産業 | C34: 0701_不動産業 | D34: 中規模事業者 | E34: 1.167241751 | F34: 2.256849951 | G34: 5.713159021 | H34: 3.117328958 | I34: 0.3323891526 | J34: 0.002277250653
A35: ⑥営業運転資本回転期間 | B35: 07_不動産業 | C35: 0701_不動産業 | D35: 小規模事業者 | E35: 3.041688377 | F35: 2.799270743 | G35: 7.502843754 | H35: 4.862459066 | I35: 1.097374697 | J35: 0.018133765
A36: ⑥営業運転資本回転期間 | B36: 08_運輸業 | C36: 0801_運輸業 | D36: 中規模事業者 | E36: 0.8539829091 | F36: 0.8464519783 | G36: 1.887625071 | H36: 1.307314142 | I36: 0.3206644465 | J36: -0.2542567989
A37: ⑥営業運転資本回転期間 | B37: 08_運輸業 | C37: 0801_運輸業 | D37: 小規模事業者 | E37: 1.114956439 | F37: 1.086130573 | G37: 2.324840042 | H37: 1.517869177 | I37: 0.6996694159 | J37: -0.02949822041
A38: ⑥営業運転資本回転期間 | B38: 09_エネルギー | C38: 0901_エネルギー | D38: 中規模事業者 | E38: 0.6651794199 | F38: 0.8638773062 | G38: 2.140010298 | H38: 1.156389911 | I38: 0.3591428409 | J38: -0.1500362426
A39: ⑥営業運転資本回転期間 | B39: 09_エネルギー | C39: 0901_エネルギー | D39: 小規模事業者 | E39: 1.473749776 | F39: 1.36597574 | G39: 4.139829583 | H39: 1.889479338 | I39: 0.822220462 | J39: 0.1429661593
A40: ⑥営業運転資本回転期間 | B40: 10_サービス業 | C40: 1006_その他のサービス業 | D40: 中規模事業者 | E40: 1.11796184 | F40: 1.151290469 | G40: 2.779142341 | H40: 1.576331659 | I40: 0.6315454602 | J40: -0.04006288294
A41: ⑥営業運転資本回転期間 | B41: 10_サービス業 | C41: 1006_その他のサービス業 | D41: 小規模事業者 | E41: 0.9805397718 | F41: 1.35861993 | G41: 2.997775356 | H41: 1.418102404 | I41: 0.4956709943 | J41: -0.1399401814
A42: ⑥営業運転資本回転期間 | B42: 10_サービス業 | C42: 1001_物品賃貸業 | D42: 中規模事業者 | E42: 1.08893783 | F42: 1.233681352 | G42: 2.823775379 | H42: 1.608331946 | I42: 0.666631832 | J42: -0.2105363665
A43: ⑥営業運転資本回転期間 | B43: 10_サービス業 | C43: 1001_物品賃貸業 | D43: 小規模事業者 | E43: 0.8462956728 | F43: 1.150065935 | G43: 2.902190614 | H43: 1.372467519 | I43: 0.3737208265 | J43: -0.05670154871
A44: ⑥営業運転資本回転期間 | B44: 10_サービス業 | C44: 1002_娯楽業 | D44: 中規模事業者 | E44: 0.1967098271 | F44: 1.033781167 | G44: 2.026033584 | H44: 0.6418942698 | I44: 0.04090126905 | J44: -0.2561321291
A45: ⑥営業運転資本回転期間 | B45: 10_サービス業 | C45: 1002_娯楽業 | D45: 小規模事業者 | E45: 0.328594459 | F45: 1.413342535 | G45: 3.315115211 | H45: 1.046824195 | I45: 0.02156006117 | J45: -0.5237778159
A46: ⑥営業運転資本回転期間 | B46: 10_サービス業 | C46: 1003_広告・調査・情報サービス業 | D46: 中規模事業者 | E46: 1.405645737 | F46: 1.1448053 | G46: 3.075316025 | H46: 1.858814986 | I46: 1.006002528 | J46: 0.1759901222
A47: ⑥営業運転資本回転期間 | B47: 10_サービス業 | C47: 1003_広告・調査・情報サービス業 | D47: 小規模事業者 | E47: 1.156254874 | F47: 1.340706781 | G47: 3.259068387 | H47: 1.572489295 | I47: 0.8328228422 | J47: 0.01175047636
A48: ⑥営業運転資本回転期間 | B48: 10_サービス業 | C48: 1004_事業サービス業 | D48: 中規模事業者 | E48: 1.130330277 | F48: 0.9233269287 | G48: 2.299436234 | H48: 1.441048297 | I48: 0.7761961901 | J48: 0.0146750929
A49: ⑥営業運転資本回転期間 | B49: 10_サービス業 | C49: 1004_事業サービス業 | D49: 小規模事業者 | E49: 1.01857773 | F49: 1.329667546 | G49: 2.43782981 | H49: 1.388057863 | I49: 0.5280996785 | J49: -0.1069522221
A50: ⑥営業運転資本回転期間 | B50: 10_サービス業 | C50: 1005_専門サービス業 | D50: 中規模事業者 | E50: 1.13160265 | F50: 1.335632115 | G50: 3.440986734 | H50: 1.74759365 | I50: 0.5736932 | J50: -0.0203459512
A51: ⑥営業運転資本回転期間 | B51: 10_サービス業 | C51: 1005_専門サービス業 | D51: 小規模事業者 | E51: 0.9429656304 | F51: 1.395073582 | G51: 3.235295133 | H51: 1.577842198 | I51: 0.4526225538 | J51: -0.1766209263
A52: ⑥営業運転資本回転期間 | B52: 不使用 | C52: 不使用 | D52: 中規模事業者
A53: ⑥営業運転資本回転期間 | B53: 不使用 | C53: 不使用 | D53: 小規模事業者
A54: ⑥営業運転資本回転期間 | B54: 11_医療業 | C54: 1101_医療業 | D54: 中規模事業者 | E54: 0.1801397796 | F54: 1.080268437 | G54: 2.285610234 | H54: 1.167002905 | I54: -0.0881291916 | J54: -0.4741553754
A55: ⑥営業運転資本回転期間 | B55: 11_医療業 | C55: 1101_医療業 | D55: 小規模事業者 | E55: 0.8753084273 | F55: 1.539180691 | G55: 3.221842388 | H55: 1.67589962 | I55: 0.485640109 | J55: -0.2484458494
A56: ⑥営業運転資本回転期間 | B56: 12_保険衛生、廃棄物処理業 | C56: 1201_保険衛生、廃棄物処理業 | D56: 中規模事業者 | E56: 1.120587729 | F56: 0.801397422 | G56: 2.101541194 | H56: 1.45004237 | I56: 0.7702107883 | J56: 0.09248538442
A57: ⑥営業運転資本回転期間 | B57: 12_保険衛生、廃棄物処理業 | C57: 1201_保険衛生、廃棄物処理業 | D57: 小規模事業者 | E57: 1.024076421 | F57: 0.8859816347 | G57: 2.533839336 | H57: 1.324833755 | I57: 0.7788215855 | J57: 0.0111453458
A58: ⑥営業運転資本回転期間 | B58: 13_観光業 | C58: 1301_観光業 | D58: 中規模事業者 | E58: 0.3606001694 | F58: 0.6252355692 | G58: 1.507013272 | H58: 0.7610521108 | I58: 0.1541858171 | J58: -0.2542567989
A59: ⑥営業運転資本回転期間 | B59: 13_観光業 | C59: 1301_観光業 | D59: 小規模事業者 | E59: 0.5625670264 | F59: 0.8646643875 | G59: 1.616154051 | H59: 0.9203427087 | I59: 0.2071852161 | J59: -0.1915204842
A60: ⑥営業運転資本回転期間 | B60: 14_その他 | C60: 1400_その他業種 | D60: 中規模事業者 | E60: 0.9452496687 | F60: 1.346057693 | G60: 3.072902483 | H60: 1.52849225 | I60: 0.4256343496 | J60: -0.3155883485
A61: ⑥営業運転資本回転期間 | B61: 14_その他 | C61: 1400_その他業種 | D61: 小規模事業者 | E61: 0.7905133012 | F61: 1.545922611 | G61: 3.318008484 | H61: 1.414805395 | I61: 0.3673050022 | J61: -0.1151574579

Sheet 【参照】自己資本比率基準値
A1: 指標カテゴリ | B1: 大分類 | C1: 小分類 | D1: 事業規模 | E1: 中央値 | F1: 標準偏差 | G1: ⅳ | H1: ⅲ | I1: ⅱ | J1: ⅰ
A2: ⑤自己資本比率 | B2: 01_農業 | C2: 0101_農業 | D2: 中規模事業者 | E2: 0.2116693198 | F2: 0.2357352898 | G2: 0.008387920657 | H2: 0.1053981073 | I2: 0.3265957923 | J2: 0.6089039828
A3: ⑤自己資本比率 | B3: 01_農業 | C3: 0101_農業 | D3: 小規模事業者 | E3: 0.1679322688 | F3: 0.3966680154 | G3: -0.3042546212 | H3: 0.05982637894 | I3: 0.2814526303 | J3: 0.6262207416
A4: ⑤自己資本比率 | B4: 02_建設業 | C4: 0201_建設業 | D4: 中規模事業者 | E4: 0.3347286979 | F4: 0.2294233915 | G4: 0.06016052308 | H4: 0.2193604016 | I4: 0.4755109481 | J4: 0.695360868
A5: ⑤自己資本比率 | B5: 02_建設業 | C5: 0201_建設業 | D5: 小規模事業者 | E5: 0.2395113433 | F5: 0.4382636233 | G5: -0.4150061571 | H5: 0.1021781197 | I5: 0.4063764816 | J5: 0.6964080559
A6: ⑤自己資本比率 | B6: 03_製造業 | C6: 0306_その他の製造業 | D6: 中規模事業者 | E6: 0.303905552 | F6: 0.2505207622 | G6: 0.02043705084 | H6: 0.1843394876 | I6: 0.4591817793 | J6: 0.7044053182
A7: ⑤自己資本比率 | B7: 03_製造業 | C7: 0306_その他の製造業 | D7: 小規模事業者 | E7: 0.2144281022 | F7: 0.4158976428 | G7: -0.3588729362 | H7: 0.08657363286 | I7: 0.3945481582 | J7: 0.7052477567
A8: ⑤自己資本比率 | B8: 03_製造業 | C8: 0301_食料品・飼料・飲料製造業 | D8: 中規模事業者 | E8: 0.2360129981 | F8: 0.2472993288 | G8: -0.004484787141 | H8: 0.1303768032 | I8: 0.3748861222 | J8: 0.6634662817
A9: ⑤自己資本比率 | B9: 03_製造業 | C9: 0301_食料品・飼料・飲料製造業 | D9: 小規模事業者 | E9: 0.1662162473 | F9: 0.4062562821 | G9: -0.3891459369 | H9: 0.05415378808 | I9: 0.3333109979 | J9: 0.7189978716
A10: ⑤自己資本比率 | B10: 03_製造業 | C10: 0302_化学工業・関連製品製造業 | D10: 中規模事業者 | E10: 0.4245513338 | F10: 0.2430475868 | G10: 0.06694305338 | H10: 0.2727293934 | I10: 0.5606666317 | J10: 0.7629814331
A11: ⑤自己資本比率 | B11: 03_製造業 | C11: 0302_化学工業・関連製品製造業 | D11: 小規模事業者 | E11: 0.3245810702 | F11: 0.3954127718 | G11: -0.1290087542 | H11: 0.1675683624 | I11: 0.497625768 | J11: 0.762220207
A12: ⑤自己資本比率 | B12: 03_製造業 | C12: 0303_鉄鋼業、非鉄金属製造業 | D12: 中規模事業者 | E12: 0.3108385636 | F12: 0.252350754 | G12: 0.006219915467 | H12: 0.1951430403 | I12: 0.4671399939 | J12: 0.6940425054
A13: ⑤自己資本比率 | B13: 03_製造業 | C13: 0303_鉄鋼業、非鉄金属製造業 | D13: 小規模事業者 | E13: 0.2994473934 | F13: 0.3634770772 | G13: -0.1595729353 | H13: 0.1376219375 | I13: 0.4179316548 | J13: 0.7414466431
A14: ⑤自己資本比率 | B14: 03_製造業 | C14: 0304_金属製品製造業 | D14: 中規模事業者 | E14: 0.2844149911 | F14: 0.2509884185 | G14: -0.002170737575 | H14: 0.1773872419 | I14: 0.4352315534 | J14: 0.6839990171
A15: ⑤自己資本比率 | B15: 03_製造業 | C15: 0304_金属製品製造業 | D15: 小規模事業者 | E15: 0.2113576425 | F15: 0.4085690114 | G15: -0.2881774385 | H15: 0.08284301966 | I15: 0.3897747899 | J15: 0.6726530327
A16: ⑤自己資本比率 | B16: 03_製造業 | C16: 0305_一般・電気機械器具製造業 | D16: 中規模事業者 | E16: 0.3294467785 | F16: 0.2439994783 | G16: 0.04307544674 | H16: 0.2115974052 | I16: 0.4842218286 | J16: 0.7124774326
A17: ⑤自己資本比率 | B17: 03_製造業 | C17: 0305_一般・電気機械器具製造業 | D17: 小規模事業者 | E17: 0.2144281022 | F17: 0.4317500612 | G17: -0.3929705948 | H17: 0.09284812094 | I17: 0.3875167623 | J17: 0.7052477567
A18: ⑤自己資本比率 | B18: 不使用 | C18: 不使用 | D18: 中規模事業者
A19: ⑤自己資本比率 | B19: 不使用 | C19: 不使用 | D19: 小規模事業者
A20: ⑤自己資本比率 | B20: 04_卸売業 | C20: 0404_その他の卸売業 | D20: 中規模事業者 | E20: 0.2674747188 | F20: 0.2247486851 | G20: 0.0321910735 | H20: 0.1690987479 | I20: 0.390246456 | J20: 0.6380189283
A21: ⑤自己資本比率 | B21: 04_卸売業 | C21: 0404_その他の卸売業 | D21: 小規模事業者 | E21: 0.1989413911 | F21: 0.3734464549 | G21: -0.2861893881 | H21: 0.09360347408 | I21: 0.3316780815 | J21: 0.6390138227
A22: ⑤自己資本比率 | B22: 04_卸売業 | C22: 0401_化学製品卸売業 | D22: 中規模事業者 | E22: 0.2785576712 | F22: 0.2171530755 | G22: 0.06268827109 | H22: 0.1924035874 | I22: 0.4051561981 | J22: 0.6789226217
A23: ⑤自己資本比率 | B23: 04_卸売業 | C23: 0401_化学製品卸売業 | D23: 小規模事業者 | E23: 0.215926402 | F23: 0.3332591018 | G23: -0.1385064883 | H23: 0.1133169532 | I23: 0.3382239883 | J23: 0.6843045747
A24: ⑤自己資本比率 | B24: 04_卸売業 | C24: 0402_繊維関連製品卸売業 | D24: 中規模事業者 | E24: 0.2835691399 | F24: 0.2288741179 | G24: 0.04274136617 | H24: 0.1727966124 | I24: 0.4087500187 | J24: 0.6685739534
A25: ⑤自己資本比率 | B25: 04_卸売業 | C25: 0402_繊維関連製品卸売業 | D25: 小規模事業者 | E25: 0.1600459163 | F25: 0.3649334164 | G25: -0.4884108737 | H25: 0.08779442617 | I25: 0.2717868489 | J25: 0.6754422667
A26: ⑤自己資本比率 | B26: 04_卸売業 | C26: 0403_食料品卸売業 | D26: 中規模事業者 | E26: 0.2164219219 | F26: 0.2323631806 | G26: -0.007722373327 | H26: 0.1293331351 | I26: 0.3454199766 | J26: 0.6119495788
A27: ⑤自己資本比率 | B27: 04_卸売業 | C27: 0403_食料品卸売業 | D27: 小規模事業者 | E27: 0.1562624298 | F27: 0.3998428987 | G27: -0.4125697177 | H27: 0.06629530454 | I27: 0.2711064926 | J27: 0.5490295666
A28: ⑤自己資本比率 | B28: 不使用 | C28: 不使用 | D28: 中規模事業者
A29: ⑤自己資本比率 | B29: 不使用 | C29: 不使用 | D29: 小規模事業者
A30: ⑤自己資本比率 | B30: 05_小売業 | C30: 0501_小売業 | D30: 中規模事業者 | E30: 0.2487367561 | F30: 0.251108723 | G30: -0.01023598087 | H30: 0.1338972863 | I30: 0.3850326895 | J30: 0.6886170325
A31: ⑤自己資本比率 | B31: 05_小売業 | C31: 0501_小売業 | D31: 小規模事業者 | E31: 0.1189666996 | F31: 0.4664321872 | G31: -0.6620465398 | H31: 0.004673675755 | I31: 0.2531140128 | J31: 0.5941983566
A32: ⑤自己資本比率 | B32: 06_飲食業 | C32: 0601_飲食業 | D32: 中規模事業者 | E32: 0.1697972621 | F32: 0.2288241963 | G32: -0.133318322 | H32: 0.08608867663 | I32: 0.2803902783 | J32: 0.5299324183
A33: ⑤自己資本比率 | B33: 06_飲食業 | C33: 0601_飲食業 | D33: 小規模事業者 | E33: 0.06298973314 | F33: 0.5742560881 | G33: -1.069673545 | H33: -0.07180228856 | I33: 0.1335444997 | J33: 0.4750774617
A34: ⑤自己資本比率 | B34: 07_不動産業 | C34: 0701_不動産業 | D34: 中規模事業者 | E34: 0.2642973378 | F34: 0.1842149468 | G34: 0.06703408903 | H34: 0.181722081 | I34: 0.3642515492 | J34: 0.5800316148
A35: ⑤自己資本比率 | B35: 07_不動産業 | C35: 0701_不動産業 | D35: 小規模事業者 | E35: 0.1616996439 | F35: 0.2498168734 | G35: -0.007125825917 | H35: 0.09351441964 | I35: 0.2568153289 | J35: 0.5358342874
A36: ⑤自己資本比率 | B36: 08_運輸業 | C36: 0801_運輸業 | D36: 中規模事業者 | E36: 0.1460616315 | F36: 0.2193217097 | G36: -0.05635571427 | H36: 0.07093989119 | I36: 0.2625763321 | J36: 0.5295800471
A37: ⑤自己資本比率 | B37: 08_運輸業 | C37: 0801_運輸業 | D37: 小規模事業者 | E37: 0.0919029584 | F37: 0.44118928 | G37: -0.5039032226 | H37: 4.942104304e-05 | I37: 0.2140840825 | J37: 0.5549957633
A38: ⑤自己資本比率 | B38: 09_エネルギー | C38: 0901_エネルギー | D38: 中規模事業者 | E38: 0.41704716 | F38: 0.2237113186 | G38: 0.1001801847 | H38: 0.2742519093 | I38: 0.494350343 | J38: 0.7684293685
A39: ⑤自己資本比率 | B39: 09_エネルギー | C39: 0901_エネルギー | D39: 小規模事業者 | E39: 0.04722577812 | F39: 0.205547057 | G39: -0.2505549055 | H39: -0.002229440856 | I39: 0.1363916536 | J39: 0.3501505013
A40: ⑤自己資本比率 | B40: 10_サービス業 | C40: 1006_その他のサービス業 | D40: 中規模事業者 | E40: 0.3024853435 | F40: 0.249766696 | G40: 0.01623825649 | H40: 0.1832594089 | I40: 0.4467189324 | J40: 0.703925587
A41: ⑤自己資本比率 | B41: 10_サービス業 | C41: 1006_その他のサービス業 | D41: 小規模事業者 | E41: 0.2067088294 | F41: 0.4685847794 | G41: -0.561528238 | H41: 0.07755190998 | I41: 0.3734326668 | J41: 0.6965234968
A42: ⑤自己資本比率 | B42: 10_サービス業 | C42: 1001_物品賃貸業 | D42: 中規模事業者 | E42: 0.2385401572 | F42: 0.2362038163 | G42: 0.0306369612 | H42: 0.1403369289 | I42: 0.3795391891 | J42: 0.6525157407
A43: ⑤自己資本比率 | B43: 10_サービス業 | C43: 1001_物品賃貸業 | D43: 小規模事業者 | E43: 0.2524198908 | F43: 0.3783411606 | G43: -0.1769127723 | H43: 0.1225742679 | I43: 0.3853491839 | J43: 0.7493497937
A44: ⑤自己資本比率 | B44: 10_サービス業 | C44: 1002_娯楽業 | D44: 中規模事業者 | E44: 0.2621861164 | F44: 0.271848045 | G44: -0.02970752454 | H44: 0.1486868384 | I44: 0.4359524703 | J44: 0.7206821882
A45: ⑤自己資本比率 | B45: 10_サービス業 | C45: 1002_娯楽業 | D45: 小規模事業者 | E45: 0.1397000972 | F45: 0.4362024446 | G45: -0.3416458812 | H45: 0.05243110466 | I45: 0.2837776016 | J45: 0.6220248045
A46: ⑤自己資本比率 | B46: 10_サービス業 | C46: 1003_広告・調査・情報サービス業 | D46: 中規模事業者 | E46: 0.3117208047 | F46: 0.2367523267 | G46: 0.03578720931 | H46: 0.1999154409 | I46: 0.4350386031 | J46: 0.6821230969
A47: ⑤自己資本比率 | B47: 10_サービス業 | C47: 1003_広告・調査・情報サービス業 | D47: 小規模事業者 | E47: 0.2683043874 | F47: 0.460672281 | G47: -0.5704386789 | H47: 0.1048676966 | I47: 0.4313233298 | J47: 0.6994999491
A48: ⑤自己資本比率 | B48: 10_サービス業 | C48: 1004_事業サービス業 | D48: 中規模事業者 | E48: 0.3127905996 | F48: 0.246173446 | G48: 0.02837843536 | H48: 0.2007756568 | I48: 0.4628723059 | J48: 0.7098655034
A49: ⑤自己資本比率 | B49: 10_サービス業 | C49: 1004_事業サービス業 | D49: 小規模事業者 | E49: 0.204042611 | F49: 0.4513256717 | G49: -0.4039392402 | H49: 0.07189532179 | I49: 0.3662952194 | J49: 0.6858346823
A50: ⑤自己資本比率 | B50: 10_サービス業 | C50: 1005_専門サービス業 | D50: 中規模事業者 | E50: 0.3755135171 | F50: 0.24788994 | G50: 0.06289976177 | H50: 0.2426017286 | I50: 0.5342260757 | J50: 0.7457932649
A51: ⑤自己資本比率 | B51: 10_サービス業 | C51: 1005_専門サービス業 | D51: 小規模事業者 | E51: 0.2088742403 | F51: 0.5335838095 | G51: -0.8047970158 | H51: 0.07182456856 | I51: 0.3856783334 | J51: 0.7075637162
A52: ⑤自己資本比率 | B52: 不使用 | C52: 不使用 | D52: 中規模事業者
A53: ⑤自己資本比率 | B53: 不使用 | C53: 不使用 | D53: 小規模事業者
A54: ⑤自己資本比率 | B54: 11_医療業 | C54: 1101_医療業 | D54: 中規模事業者 | E54: 0.1871015525 | F54: 0.2518006318 | G54: -0.09293804745 | H54: 0.1204524237 | I54: 0.2706845712 | J54: 0.6665147734
A55: ⑤自己資本比率 | B55: 11_医療業 | C55: 1101_医療業 | D55: 小規模事業者 | E55: 0.07037562404 | F55: 0.3326120084 | G55: -0.2532849305 | H55: -0.02804060473 | I55: 0.1192848971 | J55: 0.87854447
A56: ⑤自己資本比率 | B56: 12_保険衛生、廃棄物処理業 | C56: 1201_保険衛生、廃棄物処理業 | D56: 中規模事業者 | E56: 0.305391868 | F56: 0.2618488975 | G56: 0.008193562223 | H56: 0.1689140519 | I56: 0.4606570792 | J56: 0.7169456286
A57: ⑤自己資本比率 | B57: 12_保険衛生、廃棄物処理業 | C57: 1201_保険衛生、廃棄物処理業 | D57: 小規模事業者 | E57: 0.350161642 | F57: 0.4138987744 | G57: -0.1506121427 | H57: 0.2258899133 | I57: 0.5117074487 | J57: 0.6921265727
A58: ⑤自己資本比率 | B58: 13_観光業 | C58: 1301_観光業 | D58: 中規模事業者 | E58: 0.2154563673 | F58: 0.2313284724 | G58: -0.06343022408 | H58: 0.1204801126 | I58: 0.3651142593 | J58: 0.5618148803
A59: ⑤自己資本比率 | B59: 13_観光業 | C59: 1301_観光業 | D59: 小規模事業者 | E59: 0.1490506649 | F59: 0.4784805886 | G59: -0.561528238 | H59: 0.02992528323 | I59: 0.2597272438 | J59: 0.5446162864
A60: ⑤自己資本比率 | B60: 14_その他 | C60: 1400_その他業種 | D60: 中規模事業者 | E60: 0.2815061339 | F60: 0.2366206801 | G60: 0.02521704046 | H60: 0.1719367378 | I60: 0.4187949887 | J60: 0.6693637641
A61: ⑤自己資本比率 | B61: 14_その他 | C61: 1400_その他業種 | D61: 小規模事業者 | E61: 0.2225295522 | F61: 0.4282089698 | G61: -0.3981360717 | H61: 0.09451440683 | I61: 0.3856956054 | J61: 0.6857419932
